Workbook

Sheet Cover
A3: Navigator
C5: =Client_Name -> SumProduct Pty Limited
C6: =Model_Name -> SP CUMIPMT Example.xlsm
C14: Primary Developer: Liam Bastick
C16: General Cover Notes:
C17: Simple CUMIPMT example to demonstrate how cumulative interest on a loan is calculated.
C21: Any queries, please e-mail: | G21: liam.bastick@sumproduct.com
C22: Website: | G22: www.sumproduct.com

Sheet Navigator
A1: Navigator
A2: =Model_Name -> SP CUMIPMT Example.xlsm
A3: Navigator
E4: Error Checks: | G4: =Overall_Error_Check -> 0
B7: 1 | C7: Table of Contents
F9: Cover
F10: Style Guide
F11: Model Parameters
F12: Repayment Example
F13: Timing
F14: Error Checks
F15: Change Log

Sheet Style Guide
A1: =IF(ISERROR(RIGHT(CELL("filename",A1),LEN(CELL("filename",A1))-FIND("]",CELL("filename",A1)))), "", RIGHT(CELL("filename",A1),LEN(CELL("filename",A1))-FIND("]",CELL("filename",A1)))) -> Style Guide
A2: =Model_Name -> SP CUMIPMT Example.xlsm
A3: Navigator
E4: Error Checks: | I4: =Overall_Error_Check -> 0
B6: =MAX($B$5:$B5)+1 -> 1 | C6: Formatting of Headers / Dividers
C8: Description | I8: Display | K8: Style Name
C10: Sheet Title | I10: =C10 -> Sheet Title | K10: Sheet Title
C11: Model Name | I11: =C11 -> Model Name | K11: Model Name
C13: Header 1 | I13: =C13 -> Header 1 | K13: Header 1
C14: Header 2 | I14: =C14 -> Header 2 | K14: Header 2
C15: Header 3 | I15: =C15 -> Header 3 | K15: Header 3
C16: Header 4 | I16: =C16 -> Header 4 | K16: Header 4
C18: Notes | I18: =C18 -> Notes | K18: Notes
C20: Table Heading | I20: =C20 -> Table Heading | K20: Table Heading
B23: =MAX($B$5:$B22)+1 -> 2 | C23: Individual Cell Styles
C25: Description | I25: Display | K25: Style Name
C27: Assumption | I27: Assumption | K27: =C27 -> Assumption
C29: Constraint | I29: =C29 -> Constraint | K29: =C29 -> Constraint
C31: Empty | K31: =C31 -> Empty
C33: Error Check | I33: 0 | K33: =C33 -> Error Check
C35: Hyperlink | I35: Hyperlink | K35: =C35 -> Hyperlink
C37: Internal Reference | I37: ='Error Checks'!E12 -> Example | K37: =C37 -> Internal Reference
C39: Line Calculation | I39: 77 | K39: Line Calc
C41: Line Total | I41: =I39 -> 77 | K41: =C41 -> Line Total
C43: Parameter | I43: 365 | K43: =C43 -> Parameter
C45: Range Name Description | I45: Not_Named | K45: =C45 -> Range Name Description
C47: Row Reference | I47: =ROW(C47) -> 47 | K47: Row Ref
C49: Row Summary | I49: =I41 -> 77 | K49: =C49 -> Row Summary
C51: Units | I51: A$ | K51: =C51 -> Units
C53: WIP | K53: =C53 -> WIP
B56: =MAX($B$5:$B55)+1 -> 3 | C56: Numerical Styles
C58: Description | I58: Display | K58: Style Name
C60: Comma | I60: 123456.789 | K60: =C60 -> Comma
C62: Comma [0] | I62: -123456.789 | K62: Comma [0]
C64: Currency | I64: 123456.789 | K64: Currency
C66: Currency [0] | I66: 123456.789 | K66: Currency [0]
C68: Date | I68: =TODAY() -> 2018-02-09 | K68: =C68 -> Date
C70: Date Heading | I70: =TODAY() -> 2018-02-09 | K70: =C70 -> Date Heading
C72: Numbers 0 | I72: -123456.789 | K72: =C72 -> Numbers 0
C74: Percent | I74: 0.5 | K74: =C74 -> Percent

Sheet Model Parameters
A1: =IF(ISERROR(RIGHT(CELL("filename",A1),LEN(CELL("filename",A1))-FIND("]",CELL("filename",A1)))), "", RIGHT(CELL("filename",A1),LEN(CELL("filename",A1))-FIND("]",CELL("filename",A1)))) -> Model Parameters
A2: =Model_Name -> SP CUMIPMT Example.xlsm
A3: Navigator
E4: Error Checks: | I4: =Overall_Error_Check -> 0
B6: =MAX($B$5:$B5)+1 -> 1 | C6: General
C8: Key Inputs
E10: General
E11: Model Name | G11: =IF(ISERROR(OR(FIND("[",CELL("filename",A1)),FIND("]",CELL("filename",A1)))),"",MID(CELL("filename",A1),FIND("[",CELL("filename",A1))+1,FIND("]",CELL("filename",A1))-FIND("[",CELL("filename",A1))-1)) -> SP CUMIPMT Example.xlsm
E12: Client Name | G12: SumProduct Pty Limited
B15: =MAX($B$5:$B14)+1 -> 2 | C15: General Range Names
C17: Technical Assumptions
E19: Days in Year | G19: 365
E20: Months in Month | G20: 1
E21: Months in Quarter | G21: 3
E22: Months in Half Yr | G22: 6
E23: Months in Year | G23: 12
E24: Quarters in Year | G24: 4
E26: Rounding Accuracy | G26: 5
E28: Very Large Number | G28: 1e+99
E29: Very Small Number | G29: 1e-08
E31: Thousand | G31: 1000

Sheet Repayment Example
A1: =IF(ISERROR(RIGHT(CELL("filename",A1),LEN(CELL("filename",A1))-FIND("]",CELL("filename",A1)))), "", RIGHT(CELL("filename",A1),LEN(CELL("filename",A1))-FIND("]",CELL("filename",A1)))) -> Repayment Example
A2: =Model_Name -> SP CUMIPMT Example.xlsm
A3: Navigator
E4: Error Checks: | I4: =Overall_Error_Check -> 0
B6: =MAX($B$5:$B5)+1 -> 1 | C6: Summary
C8: Key Inputs
D10: Data
F12: Loan Amount | I12: 250000
F13: Annual Interest Rate | I13: 0.08
F14: Term of Loan in Years | I14: 12
D17: Analysis
F19: Monthly Payment | I19: =-PMT(I13/Months_in_Year,I14*Months_in_Year,I12) -> 2706.131459
F20: No. of Payments | I20: =I14*Months_in_Year -> 144
F21: Total Payment | I21: =I19*I20 -> 389682.93
F22: Total Interest | I22: =I21-I12 -> 139682.93
B25: =MAX($B$5:$B24)+1 -> 2 | C25: Amortisation Schedule
C27: Calculation Tables
D29: Results
F31: Month | G31: Payment | H31: Interest | I31: Principal | J31: Balance | L31: Year | M31: Cumulative Interest | N31: Cumulative Principal | O31: Balance
F32: =IF(MAX($F$31:$F31)+1>$I$20,"",MAX($F$31:$F31)+1) -> 1 | G32: =IF($F32="","",$I$19) -> 2706.131459 | H32: =IF($F32="","",-IPMT($I$13/Months_in_Year,$F32,$I$20,$I$12)) -> 1666.666667 | I32: =IF($F32="","",-PPMT($I$13/Months_in_Year,$F32,$I$20,$I$12)) -> 1039.464792 | J32: =IF($F32="","",$I$12-SUM($I$31:$I32)) -> 248960.5352 | L32: =IF(MAX($L$31:$L31)+1>$I$14,"",MAX($L$31:$L31)+1) -> 1 | M32: =IF($L32="","",-CUMIPMT($I$13/Months_in_Year,$I$20,$I$12,1,$L32*Months_in_Year,0)) -> 19532.31774 | N32: =IF($L32="","",-CUMPRINC($I$13/Months_in_Year,$I$20,$I$12,1,$L32*Months_in_Year,0)) -> 12941.25976 | O32: =IF($L32="","",ROUND($I$12-$N32,Rounding_Accuracy)) -> 237058.7402
F33: =IF(MAX($F$31:$F32)+1>$I$20,"",MAX($F$31:$F32)+1) -> 2 | G33: =IF($F33="","",$I$19) -> 2706.131459 | H33: =IF($F33="","",-IPMT($I$13/Months_in_Year,$F33,$I$20,$I$12)) -> 1659.736901 | I33: =IF($F33="","",-PPMT($I$13/Months_in_Year,$F33,$I$20,$I$12)) -> 1046.394557 | J33: =IF($F33="","",$I$12-SUM($I$31:$I33)) -> 247914.1407 | L33: =IF(MAX($L$31:$L32)+1>$I$14,"",MAX($L$31:$L32)+1) -> 2 | M33: =IF($L33="","",-CUMIPMT($I$13/Months_in_Year,$I$20,$I$12,1,$L33*Months_in_Year,0)) -> 37990.51731 | N33: =IF($L33="","",-CUMPRINC($I$13/Months_in_Year,$I$20,$I$12,1,$L33*Months_in_Year,0)) -> 26956.6377 | O33: =IF($L33="","",ROUND($I$12-$N33,Rounding_Accuracy)) -> 223043.3623
F34: =IF(MAX($F$31:$F33)+1>$I$20,"",MAX($F$31:$F33)+1) -> 3 | G34: 2706.131459 | H34: =IF($F34="","",-IPMT($I$13/Months_in_Year,$F34,$I$20,$I$12)) -> 1652.760938 | I34: =IF($F34="","",-PPMT($I$13/Months_in_Year,$F34,$I$20,$I$12)) -> 1053.370521 | J34: =IF($F34="","",$I$12-SUM($I$31:$I34)) -> 246860.7701 | L34: =IF(MAX($L$31:$L33)+1>$I$14,"",MAX($L$31:$L33)+1) -> 3 | M34: =IF($L34="","",-CUMIPMT($I$13/Months_in_Year,$I$20,$I$12,1,$L34*Months_in_Year,0)) -> 55285.44741 | N34: =IF($L34="","",-CUMPRINC($I$13/Months_in_Year,$I$20,$I$12,1,$L34*Months_in_Year,0)) -> 42135.28509 | O34: =IF($L34="","",ROUND($I$12-$N34,Rounding_Accuracy)) -> 207864.7149
F35: =IF(MAX($F$31:$F34)+1>$I$20,"",MAX($F$31:$F34)+1) -> 4 | G35: 2706.131459 | H35: =IF($F35="","",-IPMT($I$13/Months_in_Year,$F35,$I$20,$I$12)) -> 1645.738468 | I35: =IF($F35="","",-PPMT($I$13/Months_in_Year,$F35,$I$20,$I$12)) -> 1060.392991 | J35: =IF($F35="","",$I$12-SUM($I$31:$I35)) -> 245800.3771 | L35: =IF(MAX($L$31:$L34)+1>$I$14,"",MAX($L$31:$L34)+1) -> 4 | M35: =IF($L35="","",-CUMIPMT($I$13/Months_in_Year,$I$20,$I$12,1,$L35*Months_in_Year,0)) -> 71320.55727 | N35: =IF($L35="","",-CUMPRINC($I$13/Months_in_Year,$I$20,$I$12,1,$L35*Months_in_Year,0)) -> 58573.75273 | O35: =IF($L35="","",ROUND($I$12-$N35,Rounding_Accuracy)) -> 191426.2473
F36: =IF(MAX($F$31:$F35)+1>$I$20,"",MAX($F$31:$F35)+1) -> 5 | G36: 2706.131459 | H36: =IF($F36="","",-IPMT($I$13/Months_in_Year,$F36,$I$20,$I$12)) -> 1638.669181 | I36: =IF($F36="","",-PPMT($I$13/Months_in_Year,$F36,$I$20,$I$12)) -> 1067.462278 | J36: =IF($F36="","",$I$12-SUM($I$31:$I36)) -> 244732.9149 | L36: =IF(MAX($L$31:$L35)+1>$I$14,"",MAX($L$31:$L35)+1) -> 5 | M36: =IF($L36="","",-CUMIPMT($I$13/Months_in_Year,$I$20,$I$12,1,$L36*Months_in_Year,0)) -> 85991.28243 | N36: =IF($L36="","",-CUMPRINC($I$13/Months_in_Year,$I$20,$I$12,1,$L36*Months_in_Year,0)) -> 76376.60508 | O36: =IF($L36="","",ROUND($I$12-$N36,Rounding_Accuracy)) -> 173623.3949
F37: =IF(MAX($F$31:$F36)+1>$I$20,"",MAX($F$31:$F36)+1) -> 6 | G37: 2706.131459 | H37: =IF($F37="","",-IPMT($I$13/Months_in_Year,$F37,$I$20,$I$12)) -> 1631.552766 | I37: =IF($F37="","",-PPMT($I$13/Months_in_Year,$F37,$I$20,$I$12)) -> 1074.578693 | J37: =IF($F37="","",$I$12-SUM($I$31:$I37)) -> 243658.3362 | L37: =IF(MAX($L$31:$L36)+1>$I$14,"",MAX($L$31:$L36)+1) -> 6 | M37: =IF($L37="","",-CUMIPMT($I$13/Months_in_Year,$I$20,$I$12,1,$L37*Months_in_Year,0)) -> 99184.37962 | N37: =IF($L37="","",-CUMPRINC($I$13/Months_in_Year,$I$20,$I$12,1,$L37*Months_in_Year,0)) -> 95657.0854 | O37: =IF($L37="","",ROUND($I$12-$N37,Rounding_Accuracy)) -> 154342.9146
F38: =IF(MAX($F$31:$F37)+1>$I$20,"",MAX($F$31:$F37)+1) -> 7 | G38: 2706.131459 | H38: =IF($F38="","",-IPMT($I$13/Months_in_Year,$F38,$I$20,$I$12)) -> 1624.388908 | I38: =IF($F38="","",-PPMT($I$13/Months_in_Year,$F38,$I$20,$I$12)) -> 1081.742551 | J38: =IF($F38="","",$I$12-SUM($I$31:$I38)) -> 242576.5936 | L38: =IF(MAX($L$31:$L37)+1>$I$14,"",MAX($L$31:$L37)+1) -> 7 | M38: =IF($L38="","",-CUMIPMT($I$13/Months_in_Year,$I$20,$I$12,1,$L38*Months_in_Year,0)) -> 110777.2064 | N38: =IF($L38="","",-CUMPRINC($I$13/Months_in_Year,$I$20,$I$12,1,$L38*Months_in_Year,0)) -> 116537.8361 | O38: =IF($L38="","",ROUND($I$12-$N38,Rounding_Accuracy)) -> 133462.1639
F39: =IF(MAX($F$31:$F38)+1>$I$20,"",MAX($F$31:$F38)+1) -> 8 | G39: 2706.131459 | H39: =IF($F39="","",-IPMT($I$13/Months_in_Year,$F39,$I$20,$I$12)) -> 1617.177291 | I39: =IF($F39="","",-PPMT($I$13/Months_in_Year,$F39,$I$20,$I$12)) -> 1088.954168 | J39: =IF($F39="","",$I$12-SUM($I$31:$I39)) -> 241487.6395 | L39: =IF(MAX($L$31:$L38)+1>$I$14,"",MAX($L$31:$L38)+1) -> 8 | M39: =IF($L39="","",-CUMIPMT($I$13/Months_in_Year,$I$20,$I$12,1,$L39*Months_in_Year,0)) -> 120636.9413 | N39: =IF($L39="","",-CUMPRINC($I$13/Months_in_Year,$I$20,$I$12,1,$L39*Months_in_Year,0)) -> 139151.6787 | O39: =IF($L39="","",ROUND($I$12-$N39,Rounding_Accuracy)) -> 110848.3213
F40: =IF(MAX($F$31:$F39)+1>$I$20,"",MAX($F$31:$F39)+1) -> 9 | G40: 2706.131459 | H40: =IF($F40="","",-IPMT($I$13/Months_in_Year,$F40,$I$20,$I$12)) -> 1609.917596 | I40: =IF($F40="","",-PPMT($I$13/Months_in_Year,$F40,$I$20,$I$12)) -> 1096.213862 | J40: =IF($F40="","",$I$12-SUM($I$31:$I40)) -> 240391.4256 | L40: =IF(MAX($L$31:$L39)+1>$I$14,"",MAX($L$31:$L39)+1) -> 9 | M40: =IF($L40="","",-CUMIPMT($I$13/Months_in_Year,$I$20,$I$12,1,$L40*Months_in_Year,0)) -> 128619.7383 | N40: =IF($L40="","",-CUMPRINC($I$13/Months_in_Year,$I$20,$I$12,1,$L40*Months_in_Year,0)) -> 163642.4592 | O40: =IF($L40="","",ROUND($I$12-$N40,Rounding_Accuracy)) -> 86357.54079
F41: =IF(MAX($F$31:$F40)+1>$I$20,"",MAX($F$31:$F40)+1) -> 10 | G41: 2706.131459 | H41: =IF($F41="","",-IPMT($I$13/Months_in_Year,$F41,$I$20,$I$12)) -> 1602.609504 | I41: =IF($F41="","",-PPMT($I$13/Months_in_Year,$F41,$I$20,$I$12)) -> 1103.521955 | J41: =IF($F41="","",$I$12-SUM($I$31:$I41)) -> 239287.9036 | L41: =IF(MAX($L$31:$L40)+1>$I$14,"",MAX($L$31:$L40)+1) -> 10 | M41: =IF($L41="","",-CUMIPMT($I$13/Months_in_Year,$I$20,$I$12,1,$L41*Months_in_Year,0)) -> 134569.8126 | N41: =IF($L41="","",-CUMPRINC($I$13/Months_in_Year,$I$20,$I$12,1,$L41*Months_in_Year,0)) -> 190165.9624 | O41: =IF($L41="","",ROUND($I$12-$N41,Rounding_Accuracy)) -> 59834.03762
F42: =IF(MAX($F$31:$F41)+1>$I$20,"",MAX($F$31:$F41)+1) -> 11 | G42: 2706.131459 | H42: =IF($F42="","",-IPMT($I$13/Months_in_Year,$F42,$I$20,$I$12)) -> 1595.252691 | I42: =IF($F42="","",-PPMT($I$13/Months_in_Year,$F42,$I$20,$I$12)) -> 1110.878768 | J42: =IF($F42="","",$I$12-SUM($I$31:$I42)) -> 238177.0249 | L42: =IF(MAX($L$31:$L41)+1>$I$14,"",MAX($L$31:$L41)+1) -> 11 | M42: =IF($L42="","",-CUMIPMT($I$13/Months_in_Year,$I$20,$I$12,1,$L42*Months_in_Year,0)) -> 138318.4493 | N42: =IF($L42="","",-CUMPRINC($I$13/Months_in_Year,$I$20,$I$12,1,$L42*Months_in_Year,0)) -> 218890.9032 | O42: =IF($L42="","",ROUND($I$12-$N42,Rounding_Accuracy)) -> 31109.09677
F43: =IF(MAX($F$31:$F42)+1>$I$20,"",MAX($F$31:$F42)+1) -> 12 | G43: 2706.131459 | H43: =IF($F43="","",-IPMT($I$13/Months_in_Year,$F43,$I$20,$I$12)) -> 1587.846832 | I43: =IF($F43="","",-PPMT($I$13/Months_in_Year,$F43,$I$20,$I$12)) -> 1118.284626 | J43: =IF($F43="","",$I$12-SUM($I$31:$I43)) -> 237058.7402 | L43: =IF(MAX($L$31:$L42)+1>$I$14,"",MAX($L$31:$L42)+1) -> 12 | M43: =IF($L43="","",-CUMIPMT($I$13/Months_in_Year,$I$20,$I$12,1,$L43*Months_in_Year,0)) -> 139682.93 | N43: =IF($L43="","",-CUMPRINC($I$13/Months_in_Year,$I$20,$I$12,1,$L43*Months_in_Year,0)) -> 250000 | O43: =IF($L43="","",ROUND($I$12-$N43,Rounding_Accuracy)) -> 0
F44: =IF(MAX($F$31:$F43)+1>$I$20,"",MAX($F$31:$F43)+1) -> 13 | G44: 2706.131459 | H44: =IF($F44="","",-IPMT($I$13/Months_in_Year,$F44,$I$20,$I$12)) -> 1580.391602 | I44: =IF($F44="","",-PPMT($I$13/Months_in_Year,$F44,$I$20,$I$12)) -> 1125.739857 | J44: =IF($F44="","",$I$12-SUM($I$31:$I44)) -> 235933.0004 | L44: =IF(MAX($L$31:$L43)+1>$I$14,"",MAX($L$31:$L43)+1) ->  | M44: =IF($L44="","",-CUMIPMT($I$13/Months_in_Year,$I$20,$I$12,1,$L44*Months_in_Year,0)) ->  | N44: =IF($L44="","",-CUMPRINC($I$13/Months_in_Year,$I$20,$I$12,1,$L44*Months_in_Year,0)) ->  | O44: =IF($L44="","",ROUND($I$12-$N44,Rounding_Accuracy)) -> 
F45: =IF(MAX($F$31:$F44)+1>$I$20,"",MAX($F$31:$F44)+1) -> 14 | G45: 2706.131459 | H45: =IF($F45="","",-IPMT($I$13/Months_in_Year,$F45,$I$20,$I$12)) -> 1572.886669 | I45: =IF($F45="","",-PPMT($I$13/Months_in_Year,$F45,$I$20,$I$12)) -> 1133.244789 | J45: =IF($F45="","",$I$12-SUM($I$31:$I45)) -> 234799.7556 | L45: =IF(MAX($L$31:$L44)+1>$I$14,"",MAX($L$31:$L44)+1) ->  | M45: =IF($L45="","",-CUMIPMT($I$13/Months_in_Year,$I$20,$I$12,1,$L45*Months_in_Year,0)) ->  | N45: =IF($L45="","",-CUMPRINC($I$13/Months_in_Year,$I$20,$I$12,1,$L45*Months_in_Year,0)) ->  | O45: =IF($L45="","",ROUND($I$12-$N45,Rounding_Accuracy)) -> 
F46: =IF(MAX($F$31:$F45)+1>$I$20,"",MAX($F$31:$F45)+1) -> 15 | G46: 2706.131459 | H46: =IF($F46="","",-IPMT($I$13/Months_in_Year,$F46,$I$20,$I$12)) -> 1565.331704 | I46: =IF($F46="","",-PPMT($I$13/Months_in_Year,$F46,$I$20,$I$12)) -> 1140.799755 | J46: =IF($F46="","",$I$12-SUM($I$31:$I46)) -> 233658.9558 | L46: =IF(MAX($L$31:$L45)+1>$I$14,"",MAX($L$31:$L45)+1) ->  | M46: =IF($L46="","",-CUMIPMT($I$13/Months_in_Year,$I$20,$I$12,1,$L46*Months_in_Year,0)) ->  | N46: =IF($L46="","",-CUMPRINC($I$13/Months_in_Year,$I$20,$I$12,1,$L46*Months_in_Year,0)) ->  | O46: =IF($L46="","",ROUND($I$12-$N46,Rounding_Accuracy)) -> 
F47: =IF(MAX($F$31:$F46)+1>$I$20,"",MAX($F$31:$F46)+1) -> 16 | G47: 2706.131459 | H47: =IF($F47="","",-IPMT($I$13/Months_in_Year,$F47,$I$20,$I$12)) -> 1557.726372 | I47: =IF($F47="","",-PPMT($I$13/Months_in_Year,$F47,$I$20,$I$12)) -> 1148.405086 | J47: =IF($F47="","",$I$12-SUM($I$31:$I47)) -> 232510.5508 | L47: =IF(MAX($L$31:$L46)+1>$I$14,"",MAX($L$31:$L46)+1) ->  | M47: =IF($L47="","",-CUMIPMT($I$13/Months_in_Year,$I$20,$I$12,1,$L47*Months_in_Year,0)) ->  | N47: =IF($L47="","",-CUMPRINC($I$13/Months_in_Year,$I$20,$I$12,1,$L47*Months_in_Year,0)) ->  | O47: =IF($L47="","",ROUND($I$12-$N47,Rounding_Accuracy)) -> 
F48: =IF(MAX($F$31:$F47)+1>$I$20,"",MAX($F$31:$F47)+1) -> 17 | G48: 2706.131459 | H48: =IF($F48="","",-IPMT($I$13/Months_in_Year,$F48,$I$20,$I$12)) -> 1550.070338 | I48: =IF($F48="","",-PPMT($I$13/Months_in_Year,$F48,$I$20,$I$12)) -> 1156.06112 | J48: =IF($F48="","",$I$12-SUM($I$31:$I48)) -> 231354.4896 | L48: =IF(MAX($L$31:$L47)+1>$I$14,"",MAX($L$31:$L47)+1) ->  | M48: =IF($L48="","",-CUMIPMT($I$13/Months_in_Year,$I$20,$I$12,1,$L48*Months_in_Year,0)) ->  | N48: =IF($L48="","",-CUMPRINC($I$13/Months_in_Year,$I$20,$I$12,1,$L48*Months_in_Year,0)) ->  | O48: =IF($L48="","",ROUND($I$12-$N48,Rounding_Accuracy)) -> 
F49: =IF(MAX($F$31:$F48)+1>$I$20,"",MAX($F$31:$F48)+1) -> 18 | G49: 2706.131459 | H49: =IF($F49="","",-IPMT($I$13/Months_in_Year,$F49,$I$20,$I$12)) -> 1542.363264 | I49: =IF($F49="","",-PPMT($I$13/Months_in_Year,$F49,$I$20,$I$12)) -> 1163.768194 | J49: =IF($F49="","",$I$12-SUM($I$31:$I49)) -> 230190.7214 | L49: =IF(MAX($L$31:$L48)+1>$I$14,"",MAX($L$31:$L48)+1) ->  | M49: =IF($L49="","",-CUMIPMT($I$13/Months_in_Year,$I$20,$I$12,1,$L49*Months_in_Year,0)) ->  | N49: =IF($L49="","",-CUMPRINC($I$13/Months_in_Year,$I$20,$I$12,1,$L49*Months_in_Year,0)) ->  | O49: =IF($L49="","",ROUND($I$12-$N49,Rounding_Accuracy)) -> 
F50: =IF(MAX($F$31:$F49)+1>$I$20,"",MAX($F$31:$F49)+1) -> 19 | G50: 2706.131459 | H50: =IF($F50="","",-IPMT($I$13/Months_in_Year,$F50,$I$20,$I$12)) -> 1534.60481 | I50: =IF($F50="","",-PPMT($I$13/Months_in_Year,$F50,$I$20,$I$12)) -> 1171.526649 | J50: =IF($F50="","",$I$12-SUM($I$31:$I50)) -> 229019.1948 | L50: =IF(MAX($L$31:$L49)+1>$I$14,"",MAX($L$31:$L49)+1) ->  | M50: =IF($L50="","",-CUMIPMT($I$13/Months_in_Year,$I$20,$I$12,1,$L50*Months_in_Year,0)) ->  | N50: =IF($L50="","",-CUMPRINC($I$13/Months_in_Year,$I$20,$I$12,1,$L50*Months_in_Year,0)) ->  | O50: =IF($L50="","",ROUND($I$12-$N50,Rounding_Accuracy)) -> 
F51: =IF(MAX($F$31:$F50)+1>$I$20,"",MAX($F$31:$F50)+1) -> 20 | G51: 2706.131459 | H51: =IF($F51="","",-IPMT($I$13/Months_in_Year,$F51,$I$20,$I$12)) -> 1526.794632 | I51: =IF($F51="","",-PPMT($I$13/Months_in_Year,$F51,$I$20,$I$12)) -> 1179.336827 | J51: =IF($F51="","",$I$12-SUM($I$31:$I51)) -> 227839.858 | L51: =IF(MAX($L$31:$L50)+1>$I$14,"",MAX($L$31:$L50)+1) ->  | M51: =IF($L51="","",-CUMIPMT($I$13/Months_in_Year,$I$20,$I$12,1,$L51*Months_in_Year,0)) ->  | N51: =IF($L51="","",-CUMPRINC($I$13/Months_in_Year,$I$20,$I$12,1,$L51*Months_in_Year,0)) ->  | O51: =IF($L51="","",ROUND($I$12-$N51,Rounding_Accuracy)) -> 
F52: =IF(MAX($F$31:$F51)+1>$I$20,"",MAX($F$31:$F51)+1) -> 21 | G52: 2706.131459 | H52: =IF($F52="","",-IPMT($I$13/Months_in_Year,$F52,$I$20,$I$12)) -> 1518.932386 | I52: =IF($F52="","",-PPMT($I$13/Months_in_Year,$F52,$I$20,$I$12)) -> 1187.199072 | J52: =IF($F52="","",$I$12-SUM($I$31:$I52)) -> 226652.6589 | L52: =IF(MAX($L$31:$L51)+1>$I$14,"",MAX($L$31:$L51)+1) ->  | M52: =IF($L52="","",-CUMIPMT($I$13/Months_in_Year,$I$20,$I$12,1,$L52*Months_in_Year,0)) ->  | N52: =IF($L52="","",-CUMPRINC($I$13/Months_in_Year,$I$20,$I$12,1,$L52*Months_in_Year,0)) ->  | O52: =IF($L52="","",ROUND($I$12-$N52,Rounding_Accuracy)) -> 
F53: =IF(MAX($F$31:$F52)+1>$I$20,"",MAX($F$31:$F52)+1) -> 22 | G53: 2706.131459 | H53: =IF($F53="","",-IPMT($I$13/Months_in_Year,$F53,$I$20,$I$12)) -> 1511.017726 | I53: =IF($F53="","",-PPMT($I$13/Months_in_Year,$F53,$I$20,$I$12)) -> 1195.113733 | J53: =IF($F53="","",$I$12-SUM($I$31:$I53)) -> 225457.5452 | L53: =IF(MAX($L$31:$L52)+1>$I$14,"",MAX($L$31:$L52)+1) ->  | M53: =IF($L53="","",-CUMIPMT($I$13/Months_in_Year,$I$20,$I$12,1,$L53*Months_in_Year,0)) ->  | N53: =IF($L53="","",-CUMPRINC($I$13/Months_in_Year,$I$20,$I$12,1,$L53*Months_in_Year,0)) ->  | O53: =IF($L53="","",ROUND($I$12-$N53,Rounding_Accuracy)) -> 
F54: =IF(MAX($F$31:$F53)+1>$I$20,"",MAX($F$31:$F53)+1) -> 23 | G54: 2706.131459 | H54: =IF($F54="","",-IPMT($I$13/Months_in_Year,$F54,$I$20,$I$12)) -> 1503.050301 | I54: =IF($F54="","",-PPMT($I$13/Months_in_Year,$F54,$I$20,$I$12)) -> 1203.081157 | J54: =IF($F54="","",$I$12-SUM($I$31:$I54)) -> 224254.464 | L54: =IF(MAX($L$31:$L53)+1>$I$14,"",MAX($L$31:$L53)+1) ->  | M54: =IF($L54="","",-CUMIPMT($I$13/Months_in_Year,$I$20,$I$12,1,$L54*Months_in_Year,0)) ->  | N54: =IF($L54="","",-CUMPRINC($I$13/Months_in_Year,$I$20,$I$12,1,$L54*Months_in_Year,0)) ->  | O54: =IF($L54="","",ROUND($I$12-$N54,Rounding_Accuracy)) -> 
F55: =IF(MAX($F$31:$F54)+1>$I$20,"",MAX($F$31:$F54)+1) -> 24 | G55: 2706.131459 | H55: =IF($F55="","",-IPMT($I$13/Months_in_Year,$F55,$I$20,$I$12)) -> 1495.02976 | I55: =IF($F55="","",-PPMT($I$13/Months_in_Year,$F55,$I$20,$I$12)) -> 1211.101699 | J55: =IF($F55="","",$I$12-SUM($I$31:$I55)) -> 223043.3623 | L55: =IF(MAX($L$31:$L54)+1>$I$14,"",MAX($L$31:$L54)+1) ->  | M55: =IF($L55="","",-CUMIPMT($I$13/Months_in_Year,$I$20,$I$12,1,$L55*Months_in_Year,0)) ->  | N55: =IF($L55="","",-CUMPRINC($I$13/Months_in_Year,$I$20,$I$12,1,$L55*Months_in_Year,0)) ->  | O55: =IF($L55="","",ROUND($I$12-$N55,Rounding_Accuracy)) -> 
F56: =IF(MAX($F$31:$F55)+1>$I$20,"",MAX($F$31:$F55)+1) -> 25 | G56: 2706.131459 | H56: =IF($F56="","",-IPMT($I$13/Months_in_Year,$F56,$I$20,$I$12)) -> 1486.955749 | I56: =IF($F56="","",-PPMT($I$13/Months_in_Year,$F56,$I$20,$I$12)) -> 1219.17571 | J56: =IF($F56="","",$I$12-SUM($I$31:$I56)) -> 221824.1866 | L56: =IF(MAX($L$31:$L55)+1>$I$14,"",MAX($L$31:$L55)+1) ->  | M56: =IF($L56="","",-CUMIPMT($I$13/Months_in_Year,$I$20,$I$12,1,$L56*Months_in_Year,0)) ->  | N56: =IF($L56="","",-CUMPRINC($I$13/Months_in_Year,$I$20,$I$12,1,$L56*Months_in_Year,0)) ->  | O56: =IF($L56="","",ROUND($I$12-$N56,Rounding_Accuracy)) -> 
F57: =IF(MAX($F$31:$F56)+1>$I$20,"",MAX($F$31:$F56)+1) -> 26 | G57: 2706.131459 | H57: =IF($F57="","",-IPMT($I$13/Months_in_Year,$F57,$I$20,$I$12)) -> 1478.827911 | I57: =IF($F57="","",-PPMT($I$13/Months_in_Year,$F57,$I$20,$I$12)) -> 1227.303548 | J57: =IF($F57="","",$I$12-SUM($I$31:$I57)) -> 220596.883 | L57: =IF(MAX($L$31:$L56)+1>$I$14,"",MAX($L$31:$L56)+1) ->  | M57: =IF($L57="","",-CUMIPMT($I$13/Months_in_Year,$I$20,$I$12,1,$L57*Months_in_Year,0)) ->  | N57: =IF($L57="","",-CUMPRINC($I$13/Months_in_Year,$I$20,$I$12,1,$L57*Months_in_Year,0)) ->  | O57: =IF($L57="","",ROUND($I$12-$N57,Rounding_Accuracy)) -> 
F58: =IF(MAX($F$31:$F57)+1>$I$20,"",MAX($F$31:$F57)+1) -> 27 | G58: 2706.131459 | H58: =IF($F58="","",-IPMT($I$13/Months_in_Year,$F58,$I$20,$I$12)) -> 1470.645887 | I58: =IF($F58="","",-PPMT($I$13/Months_in_Year,$F58,$I$20,$I$12)) -> 1235.485572 | J58: =IF($F58="","",$I$12-SUM($I$31:$I58)) -> 219361.3975 | L58: =IF(MAX($L$31:$L57)+1>$I$14,"",MAX($L$31:$L57)+1) ->  | M58: =IF($L58="","",-CUMIPMT($I$13/Months_in_Year,$I$20,$I$12,1,$L58*Months_in_Year,0)) ->  | N58: =IF($L58="","",-CUMPRINC($I$13/Months_in_Year,$I$20,$I$12,1,$L58*Months_in_Year,0)) ->  | O58: =IF($L58="","",ROUND($I$12-$N58,Rounding_Accuracy)) -> 
F59: =IF(MAX($F$31:$F58)+1>$I$20,"",MAX($F$31:$F58)+1) -> 28 | G59: 2706.131459 | H59: =IF($F59="","",-IPMT($I$13/Months_in_Year,$F59,$I$20,$I$12)) -> 1462.409316 | I59: =IF($F59="","",-PPMT($I$13/Months_in_Year,$F59,$I$20,$I$12)) -> 1243.722142 | J59: =IF($F59="","",$I$12-SUM($I$31:$I59)) -> 218117.6753 | L59: =IF(MAX($L$31:$L58)+1>$I$14,"",MAX($L$31:$L58)+1) ->  | M59: =IF($L59="","",-CUMIPMT($I$13/Months_in_Year,$I$20,$I$12,1,$L59*Months_in_Year,0)) ->  | N59: =IF($L59="","",-CUMPRINC($I$13/Months_in_Year,$I$20,$I$12,1,$L59*Months_in_Year,0)) ->  | O59: =IF($L59="","",ROUND($I$12-$N59,Rounding_Accuracy)) -> 
F60: =IF(MAX($F$31:$F59)+1>$I$20,"",MAX($F$31:$F59)+1) -> 29 | G60: 2706.131459 | H60: =IF($F60="","",-IPMT($I$13/Months_in_Year,$F60,$I$20,$I$12)) -> 1454.117836 | I60: =IF($F60="","",-PPMT($I$13/Months_in_Year,$F60,$I$20,$I$12)) -> 1252.013623 | J60: =IF($F60="","",$I$12-SUM($I$31:$I60)) -> 216865.6617 | L60: =IF(MAX($L$31:$L59)+1>$I$14,"",MAX($L$31:$L59)+1) ->  | M60: =IF($L60="","",-CUMIPMT($I$13/Months_in_Year,$I$20,$I$12,1,$L60*Months_in_Year,0)) ->  | N60: =IF($L60="","",-CUMPRINC($I$13/Months_in_Year,$I$20,$I$12,1,$L60*Months_in_Year,0)) ->  | O60: =IF($L60="","",ROUND($I$12-$N60,Rounding_Accuracy)) -> 
F61: =IF(MAX($F$31:$F60)+1>$I$20,"",MAX($F$31:$F60)+1) -> 30 | G61: 2706.131459 | H61: =IF($F61="","",-IPMT($I$13/Months_in_Year,$F61,$I$20,$I$12)) -> 1445.771078 | I61: =IF($F61="","",-PPMT($I$13/Months_in_Year,$F61,$I$20,$I$12)) -> 1260.36038 | J61: =IF($F61="","",$I$12-SUM($I$31:$I61)) -> 215605.3013 | L61: =IF(MAX($L$31:$L60)+1>$I$14,"",MAX($L$31:$L60)+1) ->  | M61: =IF($L61="","",-CUMIPMT($I$13/Months_in_Year,$I$20,$I$12,1,$L61*Months_in_Year,0)) ->  | N61: =IF($L61="","",-CUMPRINC($I$13/Months_in_Year,$I$20,$I$12,1,$L61*Months_in_Year,0)) ->  | O61: =IF($L61="","",ROUND($I$12-$N61,Rounding_Accuracy)) -> 
F62: =IF(MAX($F$31:$F61)+1>$I$20,"",MAX($F$31:$F61)+1) -> 31 | G62: 2706.131459 | H62: =IF($F62="","",-IPMT($I$13/Months_in_Year,$F62,$I$20,$I$12)) -> 1437.368676 | I62: =IF($F62="","",-PPMT($I$13/Months_in_Year,$F62,$I$20,$I$12)) -> 1268.762783 | J62: =IF($F62="","",$I$12-SUM($I$31:$I62)) -> 214336.5385 | L62: =IF(MAX($L$31:$L61)+1>$I$14,"",MAX($L$31:$L61)+1) ->  | M62: =IF($L62="","",-CUMIPMT($I$13/Months_in_Year,$I$20,$I$12,1,$L62*Months_in_Year,0)) ->  | N62: =IF($L62="","",-CUMPRINC($I$13/Months_in_Year,$I$20,$I$12,1,$L62*Months_in_Year,0)) ->  | O62: =IF($L62="","",ROUND($I$12-$N62,Rounding_Accuracy)) -> 
F63: =IF(MAX($F$31:$F62)+1>$I$20,"",MAX($F$31:$F62)+1) -> 32 | G63: 2706.131459 | H63: =IF($F63="","",-IPMT($I$13/Months_in_Year,$F63,$I$20,$I$12)) -> 1428.910257 | I63: =IF($F63="","",-PPMT($I$13/Months_in_Year,$F63,$I$20,$I$12)) -> 1277.221202 | J63: =IF($F63="","",$I$12-SUM($I$31:$I63)) -> 213059.3173 | L63: =IF(MAX($L$31:$L62)+1>$I$14,"",MAX($L$31:$L62)+1) ->  | M63: =IF($L63="","",-CUMIPMT($I$13/Months_in_Year,$I$20,$I$12,1,$L63*Months_in_Year,0)) ->  | N63: =IF($L63="","",-CUMPRINC($I$13/Months_in_Year,$I$20,$I$12,1,$L63*Months_in_Year,0)) ->  | O63: =IF($L63="","",ROUND($I$12-$N63,Rounding_Accuracy)) -> 
F64: =IF(MAX($F$31:$F63)+1>$I$20,"",MAX($F$31:$F63)+1) -> 33 | G64: 2706.131459 | H64: =IF($F64="","",-IPMT($I$13/Months_in_Year,$F64,$I$20,$I$12)) -> 1420.395449 | I64: =IF($F64="","",-PPMT($I$13/Months_in_Year,$F64,$I$20,$I$12)) -> 1285.73601 | J64: =IF($F64="","",$I$12-SUM($I$31:$I64)) -> 211773.5813 | L64: =IF(MAX($L$31:$L63)+1>$I$14,"",MAX($L$31:$L63)+1) ->  | M64: =IF($L64="","",-CUMIPMT($I$13/Months_in_Year,$I$20,$I$12,1,$L64*Months_in_Year,0)) ->  | N64: =IF($L64="","",-CUMPRINC($I$13/Months_in_Year,$I$20,$I$12,1,$L64*Months_in_Year,0)) ->  | O64: =IF($L64="","",ROUND($I$12-$N64,Rounding_Accuracy)) -> 
F65: =IF(MAX($F$31:$F64)+1>$I$20,"",MAX($F$31:$F64)+1) -> 34 | G65: 2706.131459 | H65: =IF($F65="","",-IPMT($I$13/Months_in_Year,$F65,$I$20,$I$12)) -> 1411.823876 | I65: =IF($F65="","",-PPMT($I$13/Months_in_Year,$F65,$I$20,$I$12)) -> 1294.307583 | J65: =IF($F65="","",$I$12-SUM($I$31:$I65)) -> 210479.2738 | L65: =IF(MAX($L$31:$L64)+1>$I$14,"",MAX($L$31:$L64)+1) ->  | M65: =IF($L65="","",-CUMIPMT($I$13/Months_in_Year,$I$20,$I$12,1,$L65*Months_in_Year,0)) ->  | N65: =IF($L65="","",-CUMPRINC($I$13/Months_in_Year,$I$20,$I$12,1,$L65*Months_in_Year,0)) ->  | O65: =IF($L65="","",ROUND($I$12-$N65,Rounding_Accuracy)) -> 
F66: =IF(MAX($F$31:$F65)+1>$I$20,"",MAX($F$31:$F65)+1) -> 35 | G66: 2706.131459 | H66: =IF($F66="","",-IPMT($I$13/Months_in_Year,$F66,$I$20,$I$12)) -> 1403.195158 | I66: =IF($F66="","",-PPMT($I$13/Months_in_Year,$F66,$I$20,$I$12)) -> 1302.9363 | J66: =IF($F66="","",$I$12-SUM($I$31:$I66)) -> 209176.3375 | L66: =IF(MAX($L$31:$L65)+1>$I$14,"",MAX($L$31:$L65)+1) ->  | M66: =IF($L66="","",-CUMIPMT($I$13/Months_in_Year,$I$20,$I$12,1,$L66*Months_in_Year,0)) ->  | N66: =IF($L66="","",-CUMPRINC($I$13/Months_in_Year,$I$20,$I$12,1,$L66*Months_in_Year,0)) ->  | O66: =IF($L66="","",ROUND($I$12-$N66,Rounding_Accuracy)) -> 
F67: =IF(MAX($F$31:$F66)+1>$I$20,"",MAX($F$31:$F66)+1) -> 36 | G67: 2706.131459 | H67: =IF($F67="","",-IPMT($I$13/Months_in_Year,$F67,$I$20,$I$12)) -> 1394.508916 | I67: =IF($F67="","",-PPMT($I$13/Months_in_Year,$F67,$I$20,$I$12)) -> 1311.622542 | J67: =IF($F67="","",$I$12-SUM($I$31:$I67)) -> 207864.7149 | L67: =IF(MAX($L$31:$L66)+1>$I$14,"",MAX($L$31:$L66)+1) ->  | M67: =IF($L67="","",-CUMIPMT($I$13/Months_in_Year,$I$20,$I$12,1,$L67*Months_in_Year,0)) ->  | N67: =IF($L67="","",-CUMPRINC($I$13/Months_in_Year,$I$20,$I$12,1,$L67*Months_in_Year,0)) ->  | O67: =IF($L67="","",ROUND($I$12-$N67,Rounding_Accuracy)) -> 
F68: =IF(MAX($F$31:$F67)+1>$I$20,"",MAX($F$31:$F67)+1) -> 37 | G68: 2706.131459 | H68: =IF($F68="","",-IPMT($I$13/Months_in_Year,$F68,$I$20,$I$12)) -> 1385.764766 | I68: =IF($F68="","",-PPMT($I$13/Months_in_Year,$F68,$I$20,$I$12)) -> 1320.366692 | J68: =IF($F68="","",$I$12-SUM($I$31:$I68)) -> 206544.3482 | L68: =IF(MAX($L$31:$L67)+1>$I$14,"",MAX($L$31:$L67)+1) ->  | M68: =IF($L68="","",-CUMIPMT($I$13/Months_in_Year,$I$20,$I$12,1,$L68*Months_in_Year,0)) ->  | N68: =IF($L68="","",-CUMPRINC($I$13/Months_in_Year,$I$20,$I$12,1,$L68*Months_in_Year,0)) ->  | O68: =IF($L68="","",ROUND($I$12-$N68,Rounding_Accuracy)) -> 
F69: =IF(MAX($F$31:$F68)+1>$I$20,"",MAX($F$31:$F68)+1) -> 38 | G69: 2706.131459 | H69: =IF($F69="","",-IPMT($I$13/Months_in_Year,$F69,$I$20,$I$12)) -> 1376.962321 | I69: =IF($F69="","",-PPMT($I$13/Months_in_Year,$F69,$I$20,$I$12)) -> 1329.169137 | J69: =IF($F69="","",$I$12-SUM($I$31:$I69)) -> 205215.1791 | L69: =IF(MAX($L$31:$L68)+1>$I$14,"",MAX($L$31:$L68)+1) ->  | M69: =IF($L69="","",-CUMIPMT($I$13/Months_in_Year,$I$20,$I$12,1,$L69*Months_in_Year,0)) ->  | N69: =IF($L69="","",-CUMPRINC($I$13/Months_in_Year,$I$20,$I$12,1,$L69*Months_in_Year,0)) ->  | O69: =IF($L69="","",ROUND($I$12-$N69,Rounding_Accuracy)) -> 
F70: =IF(MAX($F$31:$F69)+1>$I$20,"",MAX($F$31:$F69)+1) -> 39 | G70: 2706.131459 | H70: =IF($F70="","",-IPMT($I$13/Months_in_Year,$F70,$I$20,$I$12)) -> 1368.101194 | I70: =IF($F70="","",-PPMT($I$13/Months_in_Year,$F70,$I$20,$I$12)) -> 1338.030265 | J70: =IF($F70="","",$I$12-SUM($I$31:$I70)) -> 203877.1488 | L70: =IF(MAX($L$31:$L69)+1>$I$14,"",MAX($L$31:$L69)+1) ->  | M70: =IF($L70="","",-CUMIPMT($I$13/Months_in_Year,$I$20,$I$12,1,$L70*Months_in_Year,0)) ->  | N70: =IF($L70="","",-CUMPRINC($I$13/Months_in_Year,$I$20,$I$12,1,$L70*Months_in_Year,0)) ->  | O70: =IF($L70="","",ROUND($I$12-$N70,Rounding_Accuracy)) -> 
F71: =IF(MAX($F$31:$F70)+1>$I$20,"",MAX($F$31:$F70)+1) -> 40 | G71: 2706.131459 | H71: =IF($F71="","",-IPMT($I$13/Months_in_Year,$F71,$I$20,$I$12)) -> 1359.180992 | I71: =IF($F71="","",-PPMT($I$13/Months_in_Year,$F71,$I$20,$I$12)) -> 1346.950466 | J71: =IF($F71="","",$I$12-SUM($I$31:$I71)) -> 202530.1983 | L71: =IF(MAX($L$31:$L70)+1>$I$14,"",MAX($L$31:$L70)+1) ->  | M71: =IF($L71="","",-CUMIPMT($I$13/Months_in_Year,$I$20,$I$12,1,$L71*Months_in_Year,0)) ->  | N71: =IF($L71="","",-CUMPRINC($I$13/Months_in_Year,$I$20,$I$12,1,$L71*Months_in_Year,0)) ->  | O71: =IF($L71="","",ROUND($I$12-$N71,Rounding_Accuracy)) -> 
F72: =IF(MAX($F$31:$F71)+1>$I$20,"",MAX($F$31:$F71)+1) -> 41 | G72: 2706.131459 | H72: =IF($F72="","",-IPMT($I$13/Months_in_Year,$F72,$I$20,$I$12)) -> 1350.201322 | I72: =IF($F72="","",-PPMT($I$13/Months_in_Year,$F72,$I$20,$I$12)) -> 1355.930136 | J72: =IF($F72="","",$I$12-SUM($I$31:$I72)) -> 201174.2682 | L72: =IF(MAX($L$31:$L71)+1>$I$14,"",MAX($L$31:$L71)+1) ->  | M72: =IF($L72="","",-CUMIPMT($I$13/Months_in_Year,$I$20,$I$12,1,$L72*Months_in_Year,0)) ->  | N72: =IF($L72="","",-CUMPRINC($I$13/Months_in_Year,$I$20,$I$12,1,$L72*Months_in_Year,0)) ->  | O72: =IF($L72="","",ROUND($I$12-$N72,Rounding_Accuracy)) -> 
F73: =IF(MAX($F$31:$F72)+1>$I$20,"",MAX($F$31:$F72)+1) -> 42 | G73: 2706.131459 | H73: =IF($F73="","",-IPMT($I$13/Months_in_Year,$F73,$I$20,$I$12)) -> 1341.161788 | I73: =IF($F73="","",-PPMT($I$13/Months_in_Year,$F73,$I$20,$I$12)) -> 1364.96967 | J73: =IF($F73="","",$I$12-SUM($I$31:$I73)) -> 199809.2985 | L73: =IF(MAX($L$31:$L72)+1>$I$14,"",MAX($L$31:$L72)+1) ->  | M73: =IF($L73="","",-CUMIPMT($I$13/Months_in_Year,$I$20,$I$12,1,$L73*Months_in_Year,0)) ->  | N73: =IF($L73="","",-CUMPRINC($I$13/Months_in_Year,$I$20,$I$12,1,$L73*Months_in_Year,0)) ->  | O73: =IF($L73="","",ROUND($I$12-$N73,Rounding_Accuracy)) -> 
F74: =IF(MAX($F$31:$F73)+1>$I$20,"",MAX($F$31:$F73)+1) -> 43 | G74: 2706.131459 | H74: =IF($F74="","",-IPMT($I$13/Months_in_Year,$F74,$I$20,$I$12)) -> 1332.06199 | I74: =IF($F74="","",-PPMT($I$13/Months_in_Year,$F74,$I$20,$I$12)) -> 1374.069468 | J74: =IF($F74="","",$I$12-SUM($I$31:$I74)) -> 198435.2291 | L74: =IF(MAX($L$31:$L73)+1>$I$14,"",MAX($L$31:$L73)+1) ->  | M74: =IF($L74="","",-CUMIPMT($I$13/Months_in_Year,$I$20,$I$12,1,$L74*Months_in_Year,0)) ->  | N74: =IF($L74="","",-CUMPRINC($I$13/Months_in_Year,$I$20,$I$12,1,$L74*Months_in_Year,0)) ->  | O74: =IF($L74="","",ROUND($I$12-$N74,Rounding_Accuracy)) -> 
F75: =IF(MAX($F$31:$F74)+1>$I$20,"",MAX($F$31:$F74)+1) -> 44 | G75: 2706.131459 | H75: =IF($F75="","",-IPMT($I$13/Months_in_Year,$F75,$I$20,$I$12)) -> 1322.901527 | I75: =IF($F75="","",-PPMT($I$13/Months_in_Year,$F75,$I$20,$I$12)) -> 1383.229931 | J75: =IF($F75="","",$I$12-SUM($I$31:$I75)) -> 197051.9991 | L75: =IF(MAX($L$31:$L74)+1>$I$14,"",MAX($L$31:$L74)+1) ->  | M75: =IF($L75="","",-CUMIPMT($I$13/Months_in_Year,$I$20,$I$12,1,$L75*Months_in_Year,0)) ->  | N75: =IF($L75="","",-CUMPRINC($I$13/Months_in_Year,$I$20,$I$12,1,$L75*Months_in_Year,0)) ->  | O75: =IF($L75="","",ROUND($I$12-$N75,Rounding_Accuracy)) -> 
F76: =IF(MAX($F$31:$F75)+1>$I$20,"",MAX($F$31:$F75)+1) -> 45 | G76: 2706.131459 | H76: =IF($F76="","",-IPMT($I$13/Months_in_Year,$F76,$I$20,$I$12)) -> 1313.679994 | I76: =IF($F76="","",-PPMT($I$13/Months_in_Year,$F76,$I$20,$I$12)) -> 1392.451464 | J76: =IF($F76="","",$I$12-SUM($I$31:$I76)) -> 195659.5477 | L76: =IF(MAX($L$31:$L75)+1>$I$14,"",MAX($L$31:$L75)+1) ->  | M76: =IF($L76="","",-CUMIPMT($I$13/Months_in_Year,$I$20,$I$12,1,$L76*Months_in_Year,0)) ->  | N76: =IF($L76="","",-CUMPRINC($I$13/Months_in_Year,$I$20,$I$12,1,$L76*Months_in_Year,0)) ->  | O76: =IF($L76="","",ROUND($I$12-$N76,Rounding_Accuracy)) -> 
F77: =IF(MAX($F$31:$F76)+1>$I$20,"",MAX($F$31:$F76)+1) -> 46 | G77: 2706.131459 | H77: =IF($F77="","",-IPMT($I$13/Months_in_Year,$F77,$I$20,$I$12)) -> 1304.396985 | I77: =IF($F77="","",-PPMT($I$13/Months_in_Year,$F77,$I$20,$I$12)) -> 1401.734474 | J77: =IF($F77="","",$I$12-SUM($I$31:$I77)) -> 194257.8132 | L77: =IF(MAX($L$31:$L76)+1>$I$14,"",MAX($L$31:$L76)+1) ->  | M77: =IF($L77="","",-CUMIPMT($I$13/Months_in_Year,$I$20,$I$12,1,$L77*Months_in_Year,0)) ->  | N77: =IF($L77="","",-CUMPRINC($I$13/Months_in_Year,$I$20,$I$12,1,$L77*Months_in_Year,0)) ->  | O77: =IF($L77="","",ROUND($I$12-$N77,Rounding_Accuracy)) -> 
F78: =IF(MAX($F$31:$F77)+1>$I$20,"",MAX($F$31:$F77)+1) -> 47 | G78: 2706.131459 | H78: =IF($F78="","",-IPMT($I$13/Months_in_Year,$F78,$I$20,$I$12)) -> 1295.052088 | I78: =IF($F78="","",-PPMT($I$13/Months_in_Year,$F78,$I$20,$I$12)) -> 1411.07937 | J78: =IF($F78="","",$I$12-SUM($I$31:$I78)) -> 192846.7338 | L78: =IF(MAX($L$31:$L77)+1>$I$14,"",MAX($L$31:$L77)+1) ->  | M78: =IF($L78="","",-CUMIPMT($I$13/Months_in_Year,$I$20,$I$12,1,$L78*Months_in_Year,0)) ->  | N78: =IF($L78="","",-CUMPRINC($I$13/Months_in_Year,$I$20,$I$12,1,$L78*Months_in_Year,0)) ->  | O78: =IF($L78="","",ROUND($I$12-$N78,Rounding_Accuracy)) -> 
F79: =IF(MAX($F$31:$F78)+1>$I$20,"",MAX($F$31:$F78)+1) -> 48 | G79: 2706.131459 | H79: =IF($F79="","",-IPMT($I$13/Months_in_Year,$F79,$I$20,$I$12)) -> 1285.644892 | I79: =IF($F79="","",-PPMT($I$13/Months_in_Year,$F79,$I$20,$I$12)) -> 1420.486566 | J79: =IF($F79="","",$I$12-SUM($I$31:$I79)) -> 191426.2473 | L79: =IF(MAX($L$31:$L78)+1>$I$14,"",MAX($L$31:$L78)+1) ->  | M79: =IF($L79="","",-CUMIPMT($I$13/Months_in_Year,$I$20,$I$12,1,$L79*Months_in_Year,0)) ->  | N79: =IF($L79="","",-CUMPRINC($I$13/Months_in_Year,$I$20,$I$12,1,$L79*Months_in_Year,0)) ->  | O79: =IF($L79="","",ROUND($I$12-$N79,Rounding_Accuracy)) -> 
F80: =IF(MAX($F$31:$F79)+1>$I$20,"",MAX($F$31:$F79)+1) -> 49 | G80: 2706.131459 | H80: =IF($F80="","",-IPMT($I$13/Months_in_Year,$F80,$I$20,$I$12)) -> 1276.174982 | I80: =IF($F80="","",-PPMT($I$13/Months_in_Year,$F80,$I$20,$I$12)) -> 1429.956477 | J80: =IF($F80="","",$I$12-SUM($I$31:$I80)) -> 189996.2908 | L80: =IF(MAX($L$31:$L79)+1>$I$14,"",MAX($L$31:$L79)+1) ->  | M80: =IF($L80="","",-CUMIPMT($I$13/Months_in_Year,$I$20,$I$12,1,$L80*Months_in_Year,0)) ->  | N80: =IF($L80="","",-CUMPRINC($I$13/Months_in_Year,$I$20,$I$12,1,$L80*Months_in_Year,0)) ->  | O80: =IF($L80="","",ROUND($I$12-$N80,Rounding_Accuracy)) -> 
F81: =IF(MAX($F$31:$F80)+1>$I$20,"",MAX($F$31:$F80)+1) -> 50 | G81: 2706.131459 | H81: =IF($F81="","",-IPMT($I$13/Months_in_Year,$F81,$I$20,$I$12)) -> 1266.641939 | I81: =IF($F81="","",-PPMT($I$13/Months_in_Year,$F81,$I$20,$I$12)) -> 1439.48952 | J81: =IF($F81="","",$I$12-SUM($I$31:$I81)) -> 188556.8013 | L81: =IF(MAX($L$31:$L80)+1>$I$14,"",MAX($L$31:$L80)+1) ->  | M81: =IF($L81="","",-CUMIPMT($I$13/Months_in_Year,$I$20,$I$12,1,$L81*Months_in_Year,0)) ->  | N81: =IF($L81="","",-CUMPRINC($I$13/Months_in_Year,$I$20,$I$12,1,$L81*Months_in_Year,0)) ->  | O81: =IF($L81="","",ROUND($I$12-$N81,Rounding_Accuracy)) -> 
F82: =IF(MAX($F$31:$F81)+1>$I$20,"",MAX($F$31:$F81)+1) -> 51 | G82: 2706.131459 | H82: =IF($F82="","",-IPMT($I$13/Months_in_Year,$F82,$I$20,$I$12)) -> 1257.045342 | I82: =IF($F82="","",-PPMT($I$13/Months_in_Year,$F82,$I$20,$I$12)) -> 1449.086117 | J82: =IF($F82="","",$I$12-SUM($I$31:$I82)) -> 187107.7152
F83: =IF(MAX($F$31:$F82)+1>$I$20,"",MAX($F$31:$F82)+1) -> 52 | G83: 2706.131459 | H83: =IF($F83="","",-IPMT($I$13/Months_in_Year,$F83,$I$20,$I$12)) -> 1247.384768 | I83: =IF($F83="","",-PPMT($I$13/Months_in_Year,$F83,$I$20,$I$12)) -> 1458.746691 | J83: =IF($F83="","",$I$12-SUM($I$31:$I83)) -> 185648.9685
F84: =IF(MAX($F$31:$F83)+1>$I$20,"",MAX($F$31:$F83)+1) -> 53 | G84: 2706.131459 | H84: =IF($F84="","",-IPMT($I$13/Months_in_Year,$F84,$I$20,$I$12)) -> 1237.65979 | I84: =IF($F84="","",-PPMT($I$13/Months_in_Year,$F84,$I$20,$I$12)) -> 1468.471669 | J84: =IF($F84="","",$I$12-SUM($I$31:$I84)) -> 184180.4968
F85: =IF(MAX($F$31:$F84)+1>$I$20,"",MAX($F$31:$F84)+1) -> 54 | G85: 2706.131459 | H85: =IF($F85="","",-IPMT($I$13/Months_in_Year,$F85,$I$20,$I$12)) -> 1227.869979 | I85: =IF($F85="","",-PPMT($I$13/Months_in_Year,$F85,$I$20,$I$12)) -> 1478.26148 | J85: =IF($F85="","",$I$12-SUM($I$31:$I85)) -> 182702.2353
F86: =IF(MAX($F$31:$F85)+1>$I$20,"",MAX($F$31:$F85)+1) -> 55 | G86: 2706.131459 | H86: =IF($F86="","",-IPMT($I$13/Months_in_Year,$F86,$I$20,$I$12)) -> 1218.014902 | I86: =IF($F86="","",-PPMT($I$13/Months_in_Year,$F86,$I$20,$I$12)) -> 1488.116556 | J86: =IF($F86="","",$I$12-SUM($I$31:$I86)) -> 181214.1188
F87: =IF(MAX($F$31:$F86)+1>$I$20,"",MAX($F$31:$F86)+1) -> 56 | G87: 2706.131459 | H87: =IF($F87="","",-IPMT($I$13/Months_in_Year,$F87,$I$20,$I$12)) -> 1208.094125 | I87: =IF($F87="","",-PPMT($I$13/Months_in_Year,$F87,$I$20,$I$12)) -> 1498.037333 | J87: =IF($F87="","",$I$12-SUM($I$31:$I87)) -> 179716.0814
F88: =IF(MAX($F$31:$F87)+1>$I$20,"",MAX($F$31:$F87)+1) -> 57 | G88: 2706.131459 | H88: =IF($F88="","",-IPMT($I$13/Months_in_Year,$F88,$I$20,$I$12)) -> 1198.107209 | I88: =IF($F88="","",-PPMT($I$13/Months_in_Year,$F88,$I$20,$I$12)) -> 1508.024249 | J88: =IF($F88="","",$I$12-SUM($I$31:$I88)) -> 178208.0572
F89: =IF(MAX($F$31:$F88)+1>$I$20,"",MAX($F$31:$F88)+1) -> 58 | G89: 2706.131459 | H89: =IF($F89="","",-IPMT($I$13/Months_in_Year,$F89,$I$20,$I$12)) -> 1188.053714 | I89: =IF($F89="","",-PPMT($I$13/Months_in_Year,$F89,$I$20,$I$12)) -> 1518.077744 | J89: =IF($F89="","",$I$12-SUM($I$31:$I89)) -> 176689.9794
F90: =IF(MAX($F$31:$F89)+1>$I$20,"",MAX($F$31:$F89)+1) -> 59 | G90: 2706.131459 | H90: =IF($F90="","",-IPMT($I$13/Months_in_Year,$F90,$I$20,$I$12)) -> 1177.933196 | I90: =IF($F90="","",-PPMT($I$13/Months_in_Year,$F90,$I$20,$I$12)) -> 1528.198262 | J90: =IF($F90="","",$I$12-SUM($I$31:$I90)) -> 175161.7812
F91: =IF(MAX($F$31:$F90)+1>$I$20,"",MAX($F$31:$F90)+1) -> 60 | G91: 2706.131459 | H91: =IF($F91="","",-IPMT($I$13/Months_in_Year,$F91,$I$20,$I$12)) -> 1167.745208 | I91: =IF($F91="","",-PPMT($I$13/Months_in_Year,$F91,$I$20,$I$12)) -> 1538.386251 | J91: =IF($F91="","",$I$12-SUM($I$31:$I91)) -> 173623.3949
F92: =IF(MAX($F$31:$F91)+1>$I$20,"",MAX($F$31:$F91)+1) -> 61 | G92: 2706.131459 | H92: =IF($F92="","",-IPMT($I$13/Months_in_Year,$F92,$I$20,$I$12)) -> 1157.489299 | I92: =IF($F92="","",-PPMT($I$13/Months_in_Year,$F92,$I$20,$I$12)) -> 1548.642159 | J92: =IF($F92="","",$I$12-SUM($I$31:$I92)) -> 172074.7528
F93: =IF(MAX($F$31:$F92)+1>$I$20,"",MAX($F$31:$F92)+1) -> 62 | G93: 2706.131459 | H93: =IF($F93="","",-IPMT($I$13/Months_in_Year,$F93,$I$20,$I$12)) -> 1147.165018 | I93: =IF($F93="","",-PPMT($I$13/Months_in_Year,$F93,$I$20,$I$12)) -> 1558.96644 | J93: =IF($F93="","",$I$12-SUM($I$31:$I93)) -> 170515.7863
F94: =IF(MAX($F$31:$F93)+1>$I$20,"",MAX($F$31:$F93)+1) -> 63 | G94: 2706.131459 | H94: =IF($F94="","",-IPMT($I$13/Months_in_Year,$F94,$I$20,$I$12)) -> 1136.771909 | I94: =IF($F94="","",-PPMT($I$13/Months_in_Year,$F94,$I$20,$I$12)) -> 1569.35955 | J94: =IF($F94="","",$I$12-SUM($I$31:$I94)) -> 168946.4268
F95: =IF(MAX($F$31:$F94)+1>$I$20,"",MAX($F$31:$F94)+1) -> 64 | G95: 2706.131459 | H95: =IF($F95="","",-IPMT($I$13/Months_in_Year,$F95,$I$20,$I$12)) -> 1126.309512 | I95: =IF($F95="","",-PPMT($I$13/Months_in_Year,$F95,$I$20,$I$12)) -> 1579.821947 | J95: =IF($F95="","",$I$12-SUM($I$31:$I95)) -> 167366.6048
F96: =IF(MAX($F$31:$F95)+1>$I$20,"",MAX($F$31:$F95)+1) -> 65 | G96: 2706.131459 | H96: =IF($F96="","",-IPMT($I$13/Months_in_Year,$F96,$I$20,$I$12)) -> 1115.777365 | I96: =IF($F96="","",-PPMT($I$13/Months_in_Year,$F96,$I$20,$I$12)) -> 1590.354093 | J96: =IF($F96="","",$I$12-SUM($I$31:$I96)) -> 165776.2507
F97: =IF(MAX($F$31:$F96)+1>$I$20,"",MAX($F$31:$F96)+1) -> 66 | G97: =IF($F97="","",$I$19) -> 2706.131459 | H97: =IF($F97="","",-IPMT($I$13/Months_in_Year,$F97,$I$20,$I$12)) -> 1105.175005 | I97: =IF($F97="","",-PPMT($I$13/Months_in_Year,$F97,$I$20,$I$12)) -> 1600.956454 | J97: =IF($F97="","",$I$12-SUM($I$31:$I97)) -> 164175.2943
F98: =IF(MAX($F$31:$F97)+1>$I$20,"",MAX($F$31:$F97)+1) -> 67 | G98: 2706.131459 | H98: =IF($F98="","",-IPMT($I$13/Months_in_Year,$F98,$I$20,$I$12)) -> 1094.501962 | I98: =IF($F98="","",-PPMT($I$13/Months_in_Year,$F98,$I$20,$I$12)) -> 1611.629497 | J98: =IF($F98="","",$I$12-SUM($I$31:$I98)) -> 162563.6648
F99: =IF(MAX($F$31:$F98)+1>$I$20,"",MAX($F$31:$F98)+1) -> 68 | G99: 2706.131459 | H99: =IF($F99="","",-IPMT($I$13/Months_in_Year,$F99,$I$20,$I$12)) -> 1083.757765 | I99: =IF($F99="","",-PPMT($I$13/Months_in_Year,$F99,$I$20,$I$12)) -> 1622.373693 | J99: =IF($F99="","",$I$12-SUM($I$31:$I99)) -> 160941.2911
F100: =IF(MAX($F$31:$F99)+1>$I$20,"",MAX($F$31:$F99)+1) -> 69 | G100: 2706.131459 | H100: =IF($F100="","",-IPMT($I$13/Months_in_Year,$F100,$I$20,$I$12)) -> 1072.941941 | I100: =IF($F100="","",-PPMT($I$13/Months_in_Year,$F100,$I$20,$I$12)) -> 1633.189518 | J100: =IF($F100="","",$I$12-SUM($I$31:$I100)) -> 159308.1016
F101: =IF(MAX($F$31:$F100)+1>$I$20,"",MAX($F$31:$F100)+1) -> 70 | G101: 2706.131459 | H101: =IF($F101="","",-IPMT($I$13/Months_in_Year,$F101,$I$20,$I$12)) -> 1062.05401 | I101: =IF($F101="","",-PPMT($I$13/Months_in_Year,$F101,$I$20,$I$12)) -> 1644.077448 | J101: =IF($F101="","",$I$12-SUM($I$31:$I101)) -> 157664.0241
F102: =IF(MAX($F$31:$F101)+1>$I$20,"",MAX($F$31:$F101)+1) -> 71 | G102: 2706.131459 | H102: =IF($F102="","",-IPMT($I$13/Months_in_Year,$F102,$I$20,$I$12)) -> 1051.093494 | I102: =IF($F102="","",-PPMT($I$13/Months_in_Year,$F102,$I$20,$I$12)) -> 1655.037964 | J102: =IF($F102="","",$I$12-SUM($I$31:$I102)) -> 156008.9862
F103: =IF(MAX($F$31:$F102)+1>$I$20,"",MAX($F$31:$F102)+1) -> 72 | G103: 2706.131459 | H103: =IF($F103="","",-IPMT($I$13/Months_in_Year,$F103,$I$20,$I$12)) -> 1040.059908 | I103: =IF($F103="","",-PPMT($I$13/Months_in_Year,$F103,$I$20,$I$12)) -> 1666.071551 | J103: =IF($F103="","",$I$12-SUM($I$31:$I103)) -> 154342.9146
F104: =IF(MAX($F$31:$F103)+1>$I$20,"",MAX($F$31:$F103)+1) -> 73 | G104: 2706.131459 | H104: =IF($F104="","",-IPMT($I$13/Months_in_Year,$F104,$I$20,$I$12)) -> 1028.952764 | I104: =IF($F104="","",-PPMT($I$13/Months_in_Year,$F104,$I$20,$I$12)) -> 1677.178694 | J104: =IF($F104="","",$I$12-SUM($I$31:$I104)) -> 152665.7359
F105: =IF(MAX($F$31:$F104)+1>$I$20,"",MAX($F$31:$F104)+1) -> 74 | G105: 2706.131459 | H105: =IF($F105="","",-IPMT($I$13/Months_in_Year,$F105,$I$20,$I$12)) -> 1017.771573 | I105: =IF($F105="","",-PPMT($I$13/Months_in_Year,$F105,$I$20,$I$12)) -> 1688.359886 | J105: =IF($F105="","",$I$12-SUM($I$31:$I105)) -> 150977.376
F106: =IF(MAX($F$31:$F105)+1>$I$20,"",MAX($F$31:$F105)+1) -> 75 | G106: 2706.131459 | H106: =IF($F106="","",-IPMT($I$13/Months_in_Year,$F106,$I$20,$I$12)) -> 1006.51584 | I106: =IF($F106="","",-PPMT($I$13/Months_in_Year,$F106,$I$20,$I$12)) -> 1699.615618 | J106: =IF($F106="","",$I$12-SUM($I$31:$I106)) -> 149277.7604
F107: =IF(MAX($F$31:$F106)+1>$I$20,"",MAX($F$31:$F106)+1) -> 76 | G107: 2706.131459 | H107: =IF($F107="","",-IPMT($I$13/Months_in_Year,$F107,$I$20,$I$12)) -> 995.1850694 | I107: =IF($F107="","",-PPMT($I$13/Months_in_Year,$F107,$I$20,$I$12)) -> 1710.946389 | J107: =IF($F107="","",$I$12-SUM($I$31:$I107)) -> 147566.814
F108: =IF(MAX($F$31:$F107)+1>$I$20,"",MAX($F$31:$F107)+1) -> 77 | G108: 2706.131459 | H108: =IF($F108="","",-IPMT($I$13/Months_in_Year,$F108,$I$20,$I$12)) -> 983.7787601 | I108: =IF($F108="","",-PPMT($I$13/Months_in_Year,$F108,$I$20,$I$12)) -> 1722.352698 | J108: =IF($F108="","",$I$12-SUM($I$31:$I108)) -> 145844.4613
F109: =IF(MAX($F$31:$F108)+1>$I$20,"",MAX($F$31:$F108)+1) -> 78 | G109: 2706.131459 | H109: =IF($F109="","",-IPMT($I$13/Months_in_Year,$F109,$I$20,$I$12)) -> 972.2964088 | I109: =IF($F109="","",-PPMT($I$13/Months_in_Year,$F109,$I$20,$I$12)) -> 1733.83505 | J109: =IF($F109="","",$I$12-SUM($I$31:$I109)) -> 144110.6263
F110: =IF(MAX($F$31:$F109)+1>$I$20,"",MAX($F$31:$F109)+1) -> 79 | G110: 2706.131459 | H110: =IF($F110="","",-IPMT($I$13/Months_in_Year,$F110,$I$20,$I$12)) -> 960.7375085 | I110: =IF($F110="","",-PPMT($I$13/Months_in_Year,$F110,$I$20,$I$12)) -> 1745.39395 | J110: =IF($F110="","",$I$12-SUM($I$31:$I110)) -> 142365.2323
F111: =IF(MAX($F$31:$F110)+1>$I$20,"",MAX($F$31:$F110)+1) -> 80 | G111: 2706.131459 | H111: =IF($F111="","",-IPMT($I$13/Months_in_Year,$F111,$I$20,$I$12)) -> 949.1015488 | I111: =IF($F111="","",-PPMT($I$13/Months_in_Year,$F111,$I$20,$I$12)) -> 1757.02991 | J111: =IF($F111="","",$I$12-SUM($I$31:$I111)) -> 140608.2024
F112: =IF(MAX($F$31:$F111)+1>$I$20,"",MAX($F$31:$F111)+1) -> 81 | G112: 2706.131459 | H112: =IF($F112="","",-IPMT($I$13/Months_in_Year,$F112,$I$20,$I$12)) -> 937.3880161 | I112: =IF($F112="","",-PPMT($I$13/Months_in_Year,$F112,$I$20,$I$12)) -> 1768.743442 | J112: =IF($F112="","",$I$12-SUM($I$31:$I112)) -> 138839.459
F113: =IF(MAX($F$31:$F112)+1>$I$20,"",MAX($F$31:$F112)+1) -> 82 | G113: 2706.131459 | H113: =IF($F113="","",-IPMT($I$13/Months_in_Year,$F113,$I$20,$I$12)) -> 925.5963931 | I113: =IF($F113="","",-PPMT($I$13/Months_in_Year,$F113,$I$20,$I$12)) -> 1780.535065 | J113: =IF($F113="","",$I$12-SUM($I$31:$I113)) -> 137058.9239
F114: =IF(MAX($F$31:$F113)+1>$I$20,"",MAX($F$31:$F113)+1) -> 83 | G114: 2706.131459 | H114: =IF($F114="","",-IPMT($I$13/Months_in_Year,$F114,$I$20,$I$12)) -> 913.7261593 | I114: =IF($F114="","",-PPMT($I$13/Months_in_Year,$F114,$I$20,$I$12)) -> 1792.405299 | J114: =IF($F114="","",$I$12-SUM($I$31:$I114)) -> 135266.5186
F115: =IF(MAX($F$31:$F114)+1>$I$20,"",MAX($F$31:$F114)+1) -> 84 | G115: 2706.131459 | H115: =IF($F115="","",-IPMT($I$13/Months_in_Year,$F115,$I$20,$I$12)) -> 901.7767907 | I115: =IF($F115="","",-PPMT($I$13/Months_in_Year,$F115,$I$20,$I$12)) -> 1804.354668 | J115: =IF($F115="","",$I$12-SUM($I$31:$I115)) -> 133462.1639
F116: =IF(MAX($F$31:$F115)+1>$I$20,"",MAX($F$31:$F115)+1) -> 85 | G116: 2706.131459 | H116: =IF($F116="","",-IPMT($I$13/Months_in_Year,$F116,$I$20,$I$12)) -> 889.7477596 | I116: =IF($F116="","",-PPMT($I$13/Months_in_Year,$F116,$I$20,$I$12)) -> 1816.383699 | J116: =IF($F116="","",$I$12-SUM($I$31:$I116)) -> 131645.7802
F117: =IF(MAX($F$31:$F116)+1>$I$20,"",MAX($F$31:$F116)+1) -> 86 | G117: 2706.131459 | H117: =IF($F117="","",-IPMT($I$13/Months_in_Year,$F117,$I$20,$I$12)) -> 877.6385349 | I117: =IF($F117="","",-PPMT($I$13/Months_in_Year,$F117,$I$20,$I$12)) -> 1828.492924 | J117: =IF($F117="","",$I$12-SUM($I$31:$I117)) -> 129817.2873
F118: =IF(MAX($F$31:$F117)+1>$I$20,"",MAX($F$31:$F117)+1) -> 87 | G118: 2706.131459 | H118: =IF($F118="","",-IPMT($I$13/Months_in_Year,$F118,$I$20,$I$12)) -> 865.4485821 | I118: =IF($F118="","",-PPMT($I$13/Months_in_Year,$F118,$I$20,$I$12)) -> 1840.682876 | J118: =IF($F118="","",$I$12-SUM($I$31:$I118)) -> 127976.6044
F119: =IF(MAX($F$31:$F118)+1>$I$20,"",MAX($F$31:$F118)+1) -> 88 | G119: 2706.131459 | H119: =IF($F119="","",-IPMT($I$13/Months_in_Year,$F119,$I$20,$I$12)) -> 853.1773629 | I119: =IF($F119="","",-PPMT($I$13/Months_in_Year,$F119,$I$20,$I$12)) -> 1852.954096 | J119: =IF($F119="","",$I$12-SUM($I$31:$I119)) -> 126123.6503
F120: =IF(MAX($F$31:$F119)+1>$I$20,"",MAX($F$31:$F119)+1) -> 89 | G120: 2706.131459 | H120: =IF($F120="","",-IPMT($I$13/Months_in_Year,$F120,$I$20,$I$12)) -> 840.8243356 | I120: =IF($F120="","",-PPMT($I$13/Months_in_Year,$F120,$I$20,$I$12)) -> 1865.307123 | J120: =IF($F120="","",$I$12-SUM($I$31:$I120)) -> 124258.3432
F121: =IF(MAX($F$31:$F120)+1>$I$20,"",MAX($F$31:$F120)+1) -> 90 | G121: 2706.131459 | H121: =IF($F121="","",-IPMT($I$13/Months_in_Year,$F121,$I$20,$I$12)) -> 828.3889548 | I121: =IF($F121="","",-PPMT($I$13/Months_in_Year,$F121,$I$20,$I$12)) -> 1877.742504 | J121: =IF($F121="","",$I$12-SUM($I$31:$I121)) -> 122380.6007
F122: =IF(MAX($F$31:$F121)+1>$I$20,"",MAX($F$31:$F121)+1) -> 91 | G122: 2706.131459 | H122: =IF($F122="","",-IPMT($I$13/Months_in_Year,$F122,$I$20,$I$12)) -> 815.8706714 | I122: =IF($F122="","",-PPMT($I$13/Months_in_Year,$F122,$I$20,$I$12)) -> 1890.260787 | J122: =IF($F122="","",$I$12-SUM($I$31:$I122)) -> 120490.3399
F123: =IF(MAX($F$31:$F122)+1>$I$20,"",MAX($F$31:$F122)+1) -> 92 | G123: 2706.131459 | H123: =IF($F123="","",-IPMT($I$13/Months_in_Year,$F123,$I$20,$I$12)) -> 803.2689328 | I123: =IF($F123="","",-PPMT($I$13/Months_in_Year,$F123,$I$20,$I$12)) -> 1902.862526 | J123: =IF($F123="","",$I$12-SUM($I$31:$I123)) -> 118587.4774
F124: =IF(MAX($F$31:$F123)+1>$I$20,"",MAX($F$31:$F123)+1) -> 93 | G124: 2706.131459 | H124: =IF($F124="","",-IPMT($I$13/Months_in_Year,$F124,$I$20,$I$12)) -> 790.5831827 | I124: =IF($F124="","",-PPMT($I$13/Months_in_Year,$F124,$I$20,$I$12)) -> 1915.548276 | J124: =IF($F124="","",$I$12-SUM($I$31:$I124)) -> 116671.9291
F125: =IF(MAX($F$31:$F124)+1>$I$20,"",MAX($F$31:$F124)+1) -> 94 | G125: 2706.131459 | H125: =IF($F125="","",-IPMT($I$13/Months_in_Year,$F125,$I$20,$I$12)) -> 777.8128608 | I125: =IF($F125="","",-PPMT($I$13/Months_in_Year,$F125,$I$20,$I$12)) -> 1928.318598 | J125: =IF($F125="","",$I$12-SUM($I$31:$I125)) -> 114743.6105
F126: =IF(MAX($F$31:$F125)+1>$I$20,"",MAX($F$31:$F125)+1) -> 95 | G126: 2706.131459 | H126: =IF($F126="","",-IPMT($I$13/Months_in_Year,$F126,$I$20,$I$12)) -> 764.9574035 | I126: =IF($F126="","",-PPMT($I$13/Months_in_Year,$F126,$I$20,$I$12)) -> 1941.174055 | J126: =IF($F126="","",$I$12-SUM($I$31:$I126)) -> 112802.4365
F127: =IF(MAX($F$31:$F126)+1>$I$20,"",MAX($F$31:$F126)+1) -> 96 | G127: 2706.131459 | H127: =IF($F127="","",-IPMT($I$13/Months_in_Year,$F127,$I$20,$I$12)) -> 752.0162431 | I127: =IF($F127="","",-PPMT($I$13/Months_in_Year,$F127,$I$20,$I$12)) -> 1954.115215 | J127: =IF($F127="","",$I$12-SUM($I$31:$I127)) -> 110848.3213
F128: =IF(MAX($F$31:$F127)+1>$I$20,"",MAX($F$31:$F127)+1) -> 97 | G128: 2706.131459 | H128: =IF($F128="","",-IPMT($I$13/Months_in_Year,$F128,$I$20,$I$12)) -> 738.9888084 | I128: =IF($F128="","",-PPMT($I$13/Months_in_Year,$F128,$I$20,$I$12)) -> 1967.14265 | J128: =IF($F128="","",$I$12-SUM($I$31:$I128)) -> 108881.1786
F129: =IF(MAX($F$31:$F128)+1>$I$20,"",MAX($F$31:$F128)+1) -> 98 | G129: 2706.131459 | H129: =IF($F129="","",-IPMT($I$13/Months_in_Year,$F129,$I$20,$I$12)) -> 725.874524 | I129: =IF($F129="","",-PPMT($I$13/Months_in_Year,$F129,$I$20,$I$12)) -> 1980.256934 | J129: =IF($F129="","",$I$12-SUM($I$31:$I129)) -> 106900.9217
F130: =IF(MAX($F$31:$F129)+1>$I$20,"",MAX($F$31:$F129)+1) -> 99 | G130: 2706.131459 | H130: =IF($F130="","",-IPMT($I$13/Months_in_Year,$F130,$I$20,$I$12)) -> 712.6728111 | I130: =IF($F130="","",-PPMT($I$13/Months_in_Year,$F130,$I$20,$I$12)) -> 1993.458647 | J130: =IF($F130="","",$I$12-SUM($I$31:$I130)) -> 104907.463
F131: =IF(MAX($F$31:$F130)+1>$I$20,"",MAX($F$31:$F130)+1) -> 100 | G131: 2706.131459 | H131: =IF($F131="","",-IPMT($I$13/Months_in_Year,$F131,$I$20,$I$12)) -> 699.3830868 | I131: =IF($F131="","",-PPMT($I$13/Months_in_Year,$F131,$I$20,$I$12)) -> 2006.748372 | J131: =IF($F131="","",$I$12-SUM($I$31:$I131)) -> 102900.7147
F132: =IF(MAX($F$31:$F131)+1>$I$20,"",MAX($F$31:$F131)+1) -> 101 | G132: 2706.131459 | H132: =IF($F132="","",-IPMT($I$13/Months_in_Year,$F132,$I$20,$I$12)) -> 686.0047643 | I132: =IF($F132="","",-PPMT($I$13/Months_in_Year,$F132,$I$20,$I$12)) -> 2020.126694 | J132: =IF($F132="","",$I$12-SUM($I$31:$I132)) -> 100880.588
F133: =IF(MAX($F$31:$F132)+1>$I$20,"",MAX($F$31:$F132)+1) -> 102 | G133: 2706.131459 | H133: =IF($F133="","",-IPMT($I$13/Months_in_Year,$F133,$I$20,$I$12)) -> 672.5372531 | I133: =IF($F133="","",-PPMT($I$13/Months_in_Year,$F133,$I$20,$I$12)) -> 2033.594205 | J133: =IF($F133="","",$I$12-SUM($I$31:$I133)) -> 98846.99375
F134: =IF(MAX($F$31:$F133)+1>$I$20,"",MAX($F$31:$F133)+1) -> 103 | G134: 2706.131459 | H134: =IF($F134="","",-IPMT($I$13/Months_in_Year,$F134,$I$20,$I$12)) -> 658.9799584 | I134: =IF($F134="","",-PPMT($I$13/Months_in_Year,$F134,$I$20,$I$12)) -> 2047.1515 | J134: =IF($F134="","",$I$12-SUM($I$31:$I134)) -> 96799.84225
F135: =IF(MAX($F$31:$F134)+1>$I$20,"",MAX($F$31:$F134)+1) -> 104 | G135: 2706.131459 | H135: =IF($F135="","",-IPMT($I$13/Months_in_Year,$F135,$I$20,$I$12)) -> 645.3322817 | I135: =IF($F135="","",-PPMT($I$13/Months_in_Year,$F135,$I$20,$I$12)) -> 2060.799177 | J135: =IF($F135="","",$I$12-SUM($I$31:$I135)) -> 94739.04308
F136: =IF(MAX($F$31:$F135)+1>$I$20,"",MAX($F$31:$F135)+1) -> 105 | G136: 2706.131459 | H136: =IF($F136="","",-IPMT($I$13/Months_in_Year,$F136,$I$20,$I$12)) -> 631.5936205 | I136: =IF($F136="","",-PPMT($I$13/Months_in_Year,$F136,$I$20,$I$12)) -> 2074.537838 | J136: =IF($F136="","",$I$12-SUM($I$31:$I136)) -> 92664.50524
F137: =IF(MAX($F$31:$F136)+1>$I$20,"",MAX($F$31:$F136)+1) -> 106 | G137: 2706.131459 | H137: =IF($F137="","",-IPMT($I$13/Months_in_Year,$F137,$I$20,$I$12)) -> 617.7633683 | I137: =IF($F137="","",-PPMT($I$13/Months_in_Year,$F137,$I$20,$I$12)) -> 2088.36809 | J137: =IF($F137="","",$I$12-SUM($I$31:$I137)) -> 90576.13715
F138: =IF(MAX($F$31:$F137)+1>$I$20,"",MAX($F$31:$F137)+1) -> 107 | G138: 2706.131459 | H138: =IF($F138="","",-IPMT($I$13/Months_in_Year,$F138,$I$20,$I$12)) -> 603.8409143 | I138: =IF($F138="","",-PPMT($I$13/Months_in_Year,$F138,$I$20,$I$12)) -> 2102.290544 | J138: =IF($F138="","",$I$12-SUM($I$31:$I138)) -> 88473.8466
F139: =IF(MAX($F$31:$F138)+1>$I$20,"",MAX($F$31:$F138)+1) -> 108 | G139: 2706.131459 | H139: =IF($F139="","",-IPMT($I$13/Months_in_Year,$F139,$I$20,$I$12)) -> 589.825644 | I139: =IF($F139="","",-PPMT($I$13/Months_in_Year,$F139,$I$20,$I$12)) -> 2116.305814 | J139: =IF($F139="","",$I$12-SUM($I$31:$I139)) -> 86357.54079
F140: =IF(MAX($F$31:$F139)+1>$I$20,"",MAX($F$31:$F139)+1) -> 109 | G140: 2706.131459 | H140: =IF($F140="","",-IPMT($I$13/Months_in_Year,$F140,$I$20,$I$12)) -> 575.7169386 | I140: =IF($F140="","",-PPMT($I$13/Months_in_Year,$F140,$I$20,$I$12)) -> 2130.41452 | J140: =IF($F140="","",$I$12-SUM($I$31:$I140)) -> 84227.12627
F141: =IF(MAX($F$31:$F140)+1>$I$20,"",MAX($F$31:$F140)+1) -> 110 | G141: 2706.131459 | H141: =IF($F141="","",-IPMT($I$13/Months_in_Year,$F141,$I$20,$I$12)) -> 561.5141751 | I141: =IF($F141="","",-PPMT($I$13/Months_in_Year,$F141,$I$20,$I$12)) -> 2144.617283 | J141: =IF($F141="","",$I$12-SUM($I$31:$I141)) -> 82082.50899
F142: =IF(MAX($F$31:$F141)+1>$I$20,"",MAX($F$31:$F141)+1) -> 111 | G142: 2706.131459 | H142: =IF($F142="","",-IPMT($I$13/Months_in_Year,$F142,$I$20,$I$12)) -> 547.2167266 | I142: =IF($F142="","",-PPMT($I$13/Months_in_Year,$F142,$I$20,$I$12)) -> 2158.914732 | J142: =IF($F142="","",$I$12-SUM($I$31:$I142)) -> 79923.59425
F143: =IF(MAX($F$31:$F142)+1>$I$20,"",MAX($F$31:$F142)+1) -> 112 | G143: 2706.131459 | H143: =IF($F143="","",-IPMT($I$13/Months_in_Year,$F143,$I$20,$I$12)) -> 532.8239617 | I143: =IF($F143="","",-PPMT($I$13/Months_in_Year,$F143,$I$20,$I$12)) -> 2173.307497 | J143: =IF($F143="","",$I$12-SUM($I$31:$I143)) -> 77750.28676
F144: =IF(MAX($F$31:$F143)+1>$I$20,"",MAX($F$31:$F143)+1) -> 113 | G144: 2706.131459 | H144: =IF($F144="","",-IPMT($I$13/Months_in_Year,$F144,$I$20,$I$12)) -> 518.335245 | I144: =IF($F144="","",-PPMT($I$13/Months_in_Year,$F144,$I$20,$I$12)) -> 2187.796213 | J144: =IF($F144="","",$I$12-SUM($I$31:$I144)) -> 75562.49054
F145: =IF(MAX($F$31:$F144)+1>$I$20,"",MAX($F$31:$F144)+1) -> 114 | G145: 2706.131459 | H145: =IF($F145="","",-IPMT($I$13/Months_in_Year,$F145,$I$20,$I$12)) -> 503.749937 | I145: =IF($F145="","",-PPMT($I$13/Months_in_Year,$F145,$I$20,$I$12)) -> 2202.381522 | J145: =IF($F145="","",$I$12-SUM($I$31:$I145)) -> 73360.10902
F146: =IF(MAX($F$31:$F145)+1>$I$20,"",MAX($F$31:$F145)+1) -> 115 | G146: 2706.131459 | H146: =IF($F146="","",-IPMT($I$13/Months_in_Year,$F146,$I$20,$I$12)) -> 489.0673935 | I146: =IF($F146="","",-PPMT($I$13/Months_in_Year,$F146,$I$20,$I$12)) -> 2217.064065 | J146: =IF($F146="","",$I$12-SUM($I$31:$I146)) -> 71143.04496
F147: =IF(MAX($F$31:$F146)+1>$I$20,"",MAX($F$31:$F146)+1) -> 116 | G147: 2706.131459 | H147: =IF($F147="","",-IPMT($I$13/Months_in_Year,$F147,$I$20,$I$12)) -> 474.2869664 | I147: =IF($F147="","",-PPMT($I$13/Months_in_Year,$F147,$I$20,$I$12)) -> 2231.844492 | J147: =IF($F147="","",$I$12-SUM($I$31:$I147)) -> 68911.20046
F148: =IF(MAX($F$31:$F147)+1>$I$20,"",MAX($F$31:$F147)+1) -> 117 | G148: 2706.131459 | H148: =IF($F148="","",-IPMT($I$13/Months_in_Year,$F148,$I$20,$I$12)) -> 459.4080031 | I148: =IF($F148="","",-PPMT($I$13/Months_in_Year,$F148,$I$20,$I$12)) -> 2246.723455 | J148: =IF($F148="","",$I$12-SUM($I$31:$I148)) -> 66664.47701
F149: =IF(MAX($F$31:$F148)+1>$I$20,"",MAX($F$31:$F148)+1) -> 118 | G149: 2706.131459 | H149: =IF($F149="","",-IPMT($I$13/Months_in_Year,$F149,$I$20,$I$12)) -> 444.4298467 | I149: =IF($F149="","",-PPMT($I$13/Months_in_Year,$F149,$I$20,$I$12)) -> 2261.701612 | J149: =IF($F149="","",$I$12-SUM($I$31:$I149)) -> 64402.7754
F150: =IF(MAX($F$31:$F149)+1>$I$20,"",MAX($F$31:$F149)+1) -> 119 | G150: 2706.131459 | H150: =IF($F150="","",-IPMT($I$13/Months_in_Year,$F150,$I$20,$I$12)) -> 429.351836 | I150: =IF($F150="","",-PPMT($I$13/Months_in_Year,$F150,$I$20,$I$12)) -> 2276.779623 | J150: =IF($F150="","",$I$12-SUM($I$31:$I150)) -> 62125.99577
F151: =IF(MAX($F$31:$F150)+1>$I$20,"",MAX($F$31:$F150)+1) -> 120 | G151: 2706.131459 | H151: =IF($F151="","",-IPMT($I$13/Months_in_Year,$F151,$I$20,$I$12)) -> 414.1733052 | I151: =IF($F151="","",-PPMT($I$13/Months_in_Year,$F151,$I$20,$I$12)) -> 2291.958153 | J151: =IF($F151="","",$I$12-SUM($I$31:$I151)) -> 59834.03762
F152: =IF(MAX($F$31:$F151)+1>$I$20,"",MAX($F$31:$F151)+1) -> 121 | G152: 2706.131459 | H152: =IF($F152="","",-IPMT($I$13/Months_in_Year,$F152,$I$20,$I$12)) -> 398.8935841 | I152: =IF($F152="","",-PPMT($I$13/Months_in_Year,$F152,$I$20,$I$12)) -> 2307.237874 | J152: =IF($F152="","",$I$12-SUM($I$31:$I152)) -> 57526.79975
F153: =IF(MAX($F$31:$F152)+1>$I$20,"",MAX($F$31:$F152)+1) -> 122 | G153: 2706.131459 | H153: =IF($F153="","",-IPMT($I$13/Months_in_Year,$F153,$I$20,$I$12)) -> 383.5119983 | I153: =IF($F153="","",-PPMT($I$13/Months_in_Year,$F153,$I$20,$I$12)) -> 2322.61946 | J153: =IF($F153="","",$I$12-SUM($I$31:$I153)) -> 55204.18029
F154: =IF(MAX($F$31:$F153)+1>$I$20,"",MAX($F$31:$F153)+1) -> 123 | G154: 2706.131459 | H154: =IF($F154="","",-IPMT($I$13/Months_in_Year,$F154,$I$20,$I$12)) -> 368.0278686 | I154: =IF($F154="","",-PPMT($I$13/Months_in_Year,$F154,$I$20,$I$12)) -> 2338.10359 | J154: =IF($F154="","",$I$12-SUM($I$31:$I154)) -> 52866.0767
F155: =IF(MAX($F$31:$F154)+1>$I$20,"",MAX($F$31:$F154)+1) -> 124 | G155: 2706.131459 | H155: =IF($F155="","",-IPMT($I$13/Months_in_Year,$F155,$I$20,$I$12)) -> 352.4405113 | I155: =IF($F155="","",-PPMT($I$13/Months_in_Year,$F155,$I$20,$I$12)) -> 2353.690947 | J155: =IF($F155="","",$I$12-SUM($I$31:$I155)) -> 50512.38575
F156: =IF(MAX($F$31:$F155)+1>$I$20,"",MAX($F$31:$F155)+1) -> 125 | G156: 2706.131459 | H156: =IF($F156="","",-IPMT($I$13/Months_in_Year,$F156,$I$20,$I$12)) -> 336.7492383 | I156: =IF($F156="","",-PPMT($I$13/Months_in_Year,$F156,$I$20,$I$12)) -> 2369.38222 | J156: =IF($F156="","",$I$12-SUM($I$31:$I156)) -> 48143.00353
F157: =IF(MAX($F$31:$F156)+1>$I$20,"",MAX($F$31:$F156)+1) -> 126 | G157: 2706.131459 | H157: =IF($F157="","",-IPMT($I$13/Months_in_Year,$F157,$I$20,$I$12)) -> 320.9533569 | I157: =IF($F157="","",-PPMT($I$13/Months_in_Year,$F157,$I$20,$I$12)) -> 2385.178102 | J157: =IF($F157="","",$I$12-SUM($I$31:$I157)) -> 45757.82543
F158: =IF(MAX($F$31:$F157)+1>$I$20,"",MAX($F$31:$F157)+1) -> 127 | G158: 2706.131459 | H158: =IF($F158="","",-IPMT($I$13/Months_in_Year,$F158,$I$20,$I$12)) -> 305.0521695 | I158: =IF($F158="","",-PPMT($I$13/Months_in_Year,$F158,$I$20,$I$12)) -> 2401.079289 | J158: =IF($F158="","",$I$12-SUM($I$31:$I158)) -> 43356.74614
F159: =IF(MAX($F$31:$F158)+1>$I$20,"",MAX($F$31:$F158)+1) -> 128 | G159: 2706.131459 | H159: =IF($F159="","",-IPMT($I$13/Months_in_Year,$F159,$I$20,$I$12)) -> 289.0449743 | I159: =IF($F159="","",-PPMT($I$13/Months_in_Year,$F159,$I$20,$I$12)) -> 2417.086484 | J159: =IF($F159="","",$I$12-SUM($I$31:$I159)) -> 40939.65965
F160: =IF(MAX($F$31:$F159)+1>$I$20,"",MAX($F$31:$F159)+1) -> 129 | G160: 2706.131459 | H160: =IF($F160="","",-IPMT($I$13/Months_in_Year,$F160,$I$20,$I$12)) -> 272.9310644 | I160: =IF($F160="","",-PPMT($I$13/Months_in_Year,$F160,$I$20,$I$12)) -> 2433.200394 | J160: =IF($F160="","",$I$12-SUM($I$31:$I160)) -> 38506.45926
F161: =IF(MAX($F$31:$F160)+1>$I$20,"",MAX($F$31:$F160)+1) -> 130 | G161: =IF($F161="","",$I$19) -> 2706.131459 | H161: =IF($F161="","",-IPMT($I$13/Months_in_Year,$F161,$I$20,$I$12)) -> 256.7097284 | I161: =IF($F161="","",-PPMT($I$13/Months_in_Year,$F161,$I$20,$I$12)) -> 2449.42173 | J161: =IF($F161="","",$I$12-SUM($I$31:$I161)) -> 36057.03753
F162: =IF(MAX($F$31:$F161)+1>$I$20,"",MAX($F$31:$F161)+1) -> 131 | G162: 2706.131459 | H162: =IF($F162="","",-IPMT($I$13/Months_in_Year,$F162,$I$20,$I$12)) -> 240.3802502 | I162: =IF($F162="","",-PPMT($I$13/Months_in_Year,$F162,$I$20,$I$12)) -> 2465.751208 | J162: =IF($F162="","",$I$12-SUM($I$31:$I162)) -> 33591.28632
F163: =IF(MAX($F$31:$F162)+1>$I$20,"",MAX($F$31:$F162)+1) -> 132 | G163: 2706.131459 | H163: =IF($F163="","",-IPMT($I$13/Months_in_Year,$F163,$I$20,$I$12)) -> 223.9419088 | I163: =IF($F163="","",-PPMT($I$13/Months_in_Year,$F163,$I$20,$I$12)) -> 2482.18955 | J163: =IF($F163="","",$I$12-SUM($I$31:$I163)) -> 31109.09677
F164: =IF(MAX($F$31:$F163)+1>$I$20,"",MAX($F$31:$F163)+1) -> 133 | G164: 2706.131459 | H164: =IF($F164="","",-IPMT($I$13/Months_in_Year,$F164,$I$20,$I$12)) -> 207.3939785 | I164: =IF($F164="","",-PPMT($I$13/Months_in_Year,$F164,$I$20,$I$12)) -> 2498.73748 | J164: =IF($F164="","",$I$12-SUM($I$31:$I164)) -> 28610.35929
F165: =IF(MAX($F$31:$F164)+1>$I$20,"",MAX($F$31:$F164)+1) -> 134 | G165: 2706.131459 | H165: =IF($F165="","",-IPMT($I$13/Months_in_Year,$F165,$I$20,$I$12)) -> 190.7357286 | I165: =IF($F165="","",-PPMT($I$13/Months_in_Year,$F165,$I$20,$I$12)) -> 2515.39573 | J165: =IF($F165="","",$I$12-SUM($I$31:$I165)) -> 26094.96356
F166: =IF(MAX($F$31:$F165)+1>$I$20,"",MAX($F$31:$F165)+1) -> 135 | G166: 2706.131459 | H166: =IF($F166="","",-IPMT($I$13/Months_in_Year,$F166,$I$20,$I$12)) -> 173.9664238 | I166: =IF($F166="","",-PPMT($I$13/Months_in_Year,$F166,$I$20,$I$12)) -> 2532.165035 | J166: =IF($F166="","",$I$12-SUM($I$31:$I166)) -> 23562.79853
F167: =IF(MAX($F$31:$F166)+1>$I$20,"",MAX($F$31:$F166)+1) -> 136 | G167: 2706.131459 | H167: =IF($F167="","",-IPMT($I$13/Months_in_Year,$F167,$I$20,$I$12)) -> 157.0853235 | I167: =IF($F167="","",-PPMT($I$13/Months_in_Year,$F167,$I$20,$I$12)) -> 2549.046135 | J167: =IF($F167="","",$I$12-SUM($I$31:$I167)) -> 21013.75239
F168: =IF(MAX($F$31:$F167)+1>$I$20,"",MAX($F$31:$F167)+1) -> 137 | G168: 2706.131459 | H168: =IF($F168="","",-IPMT($I$13/Months_in_Year,$F168,$I$20,$I$12)) -> 140.0916826 | I168: =IF($F168="","",-PPMT($I$13/Months_in_Year,$F168,$I$20,$I$12)) -> 2566.039776 | J168: =IF($F168="","",$I$12-SUM($I$31:$I168)) -> 18447.71262
F169: =IF(MAX($F$31:$F168)+1>$I$20,"",MAX($F$31:$F168)+1) -> 138 | G169: 2706.131459 | H169: =IF($F169="","",-IPMT($I$13/Months_in_Year,$F169,$I$20,$I$12)) -> 122.9847508 | I169: =IF($F169="","",-PPMT($I$13/Months_in_Year,$F169,$I$20,$I$12)) -> 2583.146708 | J169: =IF($F169="","",$I$12-SUM($I$31:$I169)) -> 15864.56591
F170: =IF(MAX($F$31:$F169)+1>$I$20,"",MAX($F$31:$F169)+1) -> 139 | G170: 2706.131459 | H170: =IF($F170="","",-IPMT($I$13/Months_in_Year,$F170,$I$20,$I$12)) -> 105.7637727 | I170: =IF($F170="","",-PPMT($I$13/Months_in_Year,$F170,$I$20,$I$12)) -> 2600.367686 | J170: =IF($F170="","",$I$12-SUM($I$31:$I170)) -> 13264.19822
F171: =IF(MAX($F$31:$F170)+1>$I$20,"",MAX($F$31:$F170)+1) -> 140 | G171: 2706.131459 | H171: =IF($F171="","",-IPMT($I$13/Months_in_Year,$F171,$I$20,$I$12)) -> 88.42798816 | I171: =IF($F171="","",-PPMT($I$13/Months_in_Year,$F171,$I$20,$I$12)) -> 2617.70347 | J171: =IF($F171="","",$I$12-SUM($I$31:$I171)) -> 10646.49475
F172: =IF(MAX($F$31:$F171)+1>$I$20,"",MAX($F$31:$F171)+1) -> 141 | G172: 2706.131459 | H172: =IF($F172="","",-IPMT($I$13/Months_in_Year,$F172,$I$20,$I$12)) -> 70.97663169 | I172: =IF($F172="","",-PPMT($I$13/Months_in_Year,$F172,$I$20,$I$12)) -> 2635.154827 | J172: =IF($F172="","",$I$12-SUM($I$31:$I172)) -> 8011.339926
F173: =IF(MAX($F$31:$F172)+1>$I$20,"",MAX($F$31:$F172)+1) -> 142 | G173: 2706.131459 | H173: =IF($F173="","",-IPMT($I$13/Months_in_Year,$F173,$I$20,$I$12)) -> 53.40893284 | I173: =IF($F173="","",-PPMT($I$13/Months_in_Year,$F173,$I$20,$I$12)) -> 2652.722526 | J173: =IF($F173="","",$I$12-SUM($I$31:$I173)) -> 5358.617401
F174: =IF(MAX($F$31:$F173)+1>$I$20,"",MAX($F$31:$F173)+1) -> 143 | G174: 2706.131459 | H174: =IF($F174="","",-IPMT($I$13/Months_in_Year,$F174,$I$20,$I$12)) -> 35.724116 | I174: =IF($F174="","",-PPMT($I$13/Months_in_Year,$F174,$I$20,$I$12)) -> 2670.407343 | J174: =IF($F174="","",$I$12-SUM($I$31:$I174)) -> 2688.210058
F175: =IF(MAX($F$31:$F174)+1>$I$20,"",MAX($F$31:$F174)+1) -> 144 | G175: 2706.131459 | H175: =IF($F175="","",-IPMT($I$13/Months_in_Year,$F175,$I$20,$I$12)) -> 17.92140039 | I175: =IF($F175="","",-PPMT($I$13/Months_in_Year,$F175,$I$20,$I$12)) -> 2688.210058 | J175: =IF($F175="","",$I$12-SUM($I$31:$I175)) -> 5.820766091e-11
F176: =IF(MAX($F$31:$F175)+1>$I$20,"",MAX($F$31:$F175)+1) ->  | H176: =IF($F176="","",-IPMT($I$13/Months_in_Year,$F176,$I$20,$I$12)) ->  | I176: =IF($F176="","",-PPMT($I$13/Months_in_Year,$F176,$I$20,$I$12)) ->  | J176: =IF($F176="","",$I$12-SUM($I$31:$I176)) -> 
F177: =IF(MAX($F$31:$F176)+1>$I$20,"",MAX($F$31:$F176)+1) ->  | H177: =IF($F177="","",-IPMT($I$13/Months_in_Year,$F177,$I$20,$I$12)) ->  | I177: =IF($F177="","",-PPMT($I$13/Months_in_Year,$F177,$I$20,$I$12)) ->  | J177: =IF($F177="","",$I$12-SUM($I$31:$I177)) -> 
F178: =IF(MAX($F$31:$F177)+1>$I$20,"",MAX($F$31:$F177)+1) ->  | H178: =IF($F178="","",-IPMT($I$13/Months_in_Year,$F178,$I$20,$I$12)) ->  | I178: =IF($F178="","",-PPMT($I$13/Months_in_Year,$F178,$I$20,$I$12)) ->  | J178: =IF($F178="","",$I$12-SUM($I$31:$I178)) -> 
F179: =IF(MAX($F$31:$F178)+1>$I$20,"",MAX($F$31:$F178)+1) ->  | H179: =IF($F179="","",-IPMT($I$13/Months_in_Year,$F179,$I$20,$I$12)) ->  | I179: =IF($F179="","",-PPMT($I$13/Months_in_Year,$F179,$I$20,$I$12)) ->  | J179: =IF($F179="","",$I$12-SUM($I$31:$I179)) -> 
F180: =IF(MAX($F$31:$F179)+1>$I$20,"",MAX($F$31:$F179)+1) ->  | H180: =IF($F180="","",-IPMT($I$13/Months_in_Year,$F180,$I$20,$I$12)) ->  | I180: =IF($F180="","",-PPMT($I$13/Months_in_Year,$F180,$I$20,$I$12)) ->  | J180: =IF($F180="","",$I$12-SUM($I$31:$I180)) -> 
F181: =IF(MAX($F$31:$F180)+1>$I$20,"",MAX($F$31:$F180)+1) ->  | H181: =IF($F181="","",-IPMT($I$13/Months_in_Year,$F181,$I$20,$I$12)) ->  | I181: =IF($F181="","",-PPMT($I$13/Months_in_Year,$F181,$I$20,$I$12)) ->  | J181: =IF($F181="","",$I$12-SUM($I$31:$I181)) -> 
F182: =IF(MAX($F$31:$F181)+1>$I$20,"",MAX($F$31:$F181)+1) ->  | H182: =IF($F182="","",-IPMT($I$13/Months_in_Year,$F182,$I$20,$I$12)) ->  | I182: =IF($F182="","",-PPMT($I$13/Months_in_Year,$F182,$I$20,$I$12)) ->  | J182: =IF($F182="","",$I$12-SUM($I$31:$I182)) -> 
F183: =IF(MAX($F$31:$F182)+1>$I$20,"",MAX($F$31:$F182)+1) ->  | H183: =IF($F183="","",-IPMT($I$13/Months_in_Year,$F183,$I$20,$I$12)) ->  | I183: =IF($F183="","",-PPMT($I$13/Months_in_Year,$F183,$I$20,$I$12)) ->  | J183: =IF($F183="","",$I$12-SUM($I$31:$I183)) -> 
F184: =IF(MAX($F$31:$F183)+1>$I$20,"",MAX($F$31:$F183)+1) ->  | H184: =IF($F184="","",-IPMT($I$13/Months_in_Year,$F184,$I$20,$I$12)) ->  | I184: =IF($F184="","",-PPMT($I$13/Months_in_Year,$F184,$I$20,$I$12)) ->  | J184: =IF($F184="","",$I$12-SUM($I$31:$I184)) -> 
F185: =IF(MAX($F$31:$F184)+1>$I$20,"",MAX($F$31:$F184)+1) ->  | H185: =IF($F185="","",-IPMT($I$13/Months_in_Year,$F185,$I$20,$I$12)) ->  | I185: =IF($F185="","",-PPMT($I$13/Months_in_Year,$F185,$I$20,$I$12)) ->  | J185: =IF($F185="","",$I$12-SUM($I$31:$I185)) -> 
F186: =IF(MAX($F$31:$F185)+1>$I$20,"",MAX($F$31:$F185)+1) ->  | H186: =IF($F186="","",-IPMT($I$13/Months_in_Year,$F186,$I$20,$I$12)) ->  | I186: =IF($F186="","",-PPMT($I$13/Months_in_Year,$F186,$I$20,$I$12)) ->  | J186: =IF($F186="","",$I$12-SUM($I$31:$I186)) -> 
F187: =IF(MAX($F$31:$F186)+1>$I$20,"",MAX($F$31:$F186)+1) ->  | H187: =IF($F187="","",-IPMT($I$13/Months_in_Year,$F187,$I$20,$I$12)) ->  | I187: =IF($F187="","",-PPMT($I$13/Months_in_Year,$F187,$I$20,$I$12)) ->  | J187: =IF($F187="","",$I$12-SUM($I$31:$I187)) -> 
F188: =IF(MAX($F$31:$F187)+1>$I$20,"",MAX($F$31:$F187)+1) ->  | H188: =IF($F188="","",-IPMT($I$13/Months_in_Year,$F188,$I$20,$I$12)) ->  | I188: =IF($F188="","",-PPMT($I$13/Months_in_Year,$F188,$I$20,$I$12)) ->  | J188: =IF($F188="","",$I$12-SUM($I$31:$I188)) -> 
F189: =IF(MAX($F$31:$F188)+1>$I$20,"",MAX($F$31:$F188)+1) ->  | H189: =IF($F189="","",-IPMT($I$13/Months_in_Year,$F189,$I$20,$I$12)) ->  | I189: =IF($F189="","",-PPMT($I$13/Months_in_Year,$F189,$I$20,$I$12)) ->  | J189: =IF($F189="","",$I$12-SUM($I$31:$I189)) -> 
F190: =IF(MAX($F$31:$F189)+1>$I$20,"",MAX($F$31:$F189)+1) ->  | H190: =IF($F190="","",-IPMT($I$13/Months_in_Year,$F190,$I$20,$I$12)) ->  | I190: =IF($F190="","",-PPMT($I$13/Months_in_Year,$F190,$I$20,$I$12)) ->  | J190: =IF($F190="","",$I$12-SUM($I$31:$I190)) -> 
F191: =IF(MAX($F$31:$F190)+1>$I$20,"",MAX($F$31:$F190)+1) ->  | H191: =IF($F191="","",-IPMT($I$13/Months_in_Year,$F191,$I$20,$I$12)) ->  | I191: =IF($F191="","",-PPMT($I$13/Months_in_Year,$F191,$I$20,$I$12)) ->  | J191: =IF($F191="","",$I$12-SUM($I$31:$I191)) -> 
F192: =IF(MAX($F$31:$F191)+1>$I$20,"",MAX($F$31:$F191)+1) ->  | H192: =IF($F192="","",-IPMT($I$13/Months_in_Year,$F192,$I$20,$I$12)) ->  | I192: =IF($F192="","",-PPMT($I$13/Months_in_Year,$F192,$I$20,$I$12)) ->  | J192: =IF($F192="","",$I$12-SUM($I$31:$I192)) -> 
F193: =IF(MAX($F$31:$F192)+1>$I$20,"",MAX($F$31:$F192)+1) ->  | H193: =IF($F193="","",-IPMT($I$13/Months_in_Year,$F193,$I$20,$I$12)) ->  | I193: =IF($F193="","",-PPMT($I$13/Months_in_Year,$F193,$I$20,$I$12)) ->  | J193: =IF($F193="","",$I$12-SUM($I$31:$I193)) -> 
F194: =IF(MAX($F$31:$F193)+1>$I$20,"",MAX($F$31:$F193)+1) ->  | H194: =IF($F194="","",-IPMT($I$13/Months_in_Year,$F194,$I$20,$I$12)) ->  | I194: =IF($F194="","",-PPMT($I$13/Months_in_Year,$F194,$I$20,$I$12)) ->  | J194: =IF($F194="","",$I$12-SUM($I$31:$I194)) -> 
F195: =IF(MAX($F$31:$F194)+1>$I$20,"",MAX($F$31:$F194)+1) ->  | H195: =IF($F195="","",-IPMT($I$13/Months_in_Year,$F195,$I$20,$I$12)) ->  | I195: =IF($F195="","",-PPMT($I$13/Months_in_Year,$F195,$I$20,$I$12)) ->  | J195: =IF($F195="","",$I$12-SUM($I$31:$I195)) -> 
F196: =IF(MAX($F$31:$F195)+1>$I$20,"",MAX($F$31:$F195)+1) ->  | H196: =IF($F196="","",-IPMT($I$13/Months_in_Year,$F196,$I$20,$I$12)) ->  | I196: =IF($F196="","",-PPMT($I$13/Months_in_Year,$F196,$I$20,$I$12)) ->  | J196: =IF($F196="","",$I$12-SUM($I$31:$I196)) -> 
F197: =IF(MAX($F$31:$F196)+1>$I$20,"",MAX($F$31:$F196)+1) ->  | H197: =IF($F197="","",-IPMT($I$13/Months_in_Year,$F197,$I$20,$I$12)) ->  | I197: =IF($F197="","",-PPMT($I$13/Months_in_Year,$F197,$I$20,$I$12)) ->  | J197: =IF($F197="","",$I$12-SUM($I$31:$I197)) -> 
F198: =IF(MAX($F$31:$F197)+1>$I$20,"",MAX($F$31:$F197)+1) ->  | H198: =IF($F198="","",-IPMT($I$13/Months_in_Year,$F198,$I$20,$I$12)) ->  | I198: =IF($F198="","",-PPMT($I$13/Months_in_Year,$F198,$I$20,$I$12)) ->  | J198: =IF($F198="","",$I$12-SUM($I$31:$I198)) -> 
F199: =IF(MAX($F$31:$F198)+1>$I$20,"",MAX($F$31:$F198)+1) ->  | H199: =IF($F199="","",-IPMT($I$13/Months_in_Year,$F199,$I$20,$I$12)) ->  | I199: =IF($F199="","",-PPMT($I$13/Months_in_Year,$F199,$I$20,$I$12)) ->  | J199: =IF($F199="","",$I$12-SUM($I$31:$I199)) -> 
F200: =IF(MAX($F$31:$F199)+1>$I$20,"",MAX($F$31:$F199)+1) ->  | H200: =IF($F200="","",-IPMT($I$13/Months_in_Year,$F200,$I$20,$I$12)) ->  | I200: =IF($F200="","",-PPMT($I$13/Months_in_Year,$F200,$I$20,$I$12)) ->  | J200: =IF($F200="","",$I$12-SUM($I$31:$I200)) -> 
F201: =IF(MAX($F$31:$F200)+1>$I$20,"",MAX($F$31:$F200)+1) ->  | H201: =IF($F201="","",-IPMT($I$13/Months_in_Year,$F201,$I$20,$I$12)) ->  | I201: =IF($F201="","",-PPMT($I$13/Months_in_Year,$F201,$I$20,$I$12)) ->  | J201: =IF($F201="","",$I$12-SUM($I$31:$I201)) -> 
F202: =IF(MAX($F$31:$F201)+1>$I$20,"",MAX($F$31:$F201)+1) ->  | H202: =IF($F202="","",-IPMT($I$13/Months_in_Year,$F202,$I$20,$I$12)) ->  | I202: =IF($F202="","",-PPMT($I$13/Months_in_Year,$F202,$I$20,$I$12)) ->  | J202: =IF($F202="","",$I$12-SUM($I$31:$I202)) -> 
F203: =IF(MAX($F$31:$F202)+1>$I$20,"",MAX($F$31:$F202)+1) ->  | H203: =IF($F203="","",-IPMT($I$13/Months_in_Year,$F203,$I$20,$I$12)) ->  | I203: =IF($F203="","",-PPMT($I$13/Months_in_Year,$F203,$I$20,$I$12)) ->  | J203: =IF($F203="","",$I$12-SUM($I$31:$I203)) -> 
F204: =IF(MAX($F$31:$F203)+1>$I$20,"",MAX($F$31:$F203)+1) ->  | H204: =IF($F204="","",-IPMT($I$13/Months_in_Year,$F204,$I$20,$I$12)) ->  | I204: =IF($F204="","",-PPMT($I$13/Months_in_Year,$F204,$I$20,$I$12)) ->  | J204: =IF($F204="","",$I$12-SUM($I$31:$I204)) -> 
F205: =IF(MAX($F$31:$F204)+1>$I$20,"",MAX($F$31:$F204)+1) ->  | H205: =IF($F205="","",-IPMT($I$13/Months_in_Year,$F205,$I$20,$I$12)) ->  | I205: =IF($F205="","",-PPMT($I$13/Months_in_Year,$F205,$I$20,$I$12)) ->  | J205: =IF($F205="","",$I$12-SUM($I$31:$I205)) -> 
F206: =IF(MAX($F$31:$F205)+1>$I$20,"",MAX($F$31:$F205)+1) ->  | H206: =IF($F206="","",-IPMT($I$13/Months_in_Year,$F206,$I$20,$I$12)) ->  | I206: =IF($F206="","",-PPMT($I$13/Months_in_Year,$F206,$I$20,$I$12)) ->  | J206: =IF($F206="","",$I$12-SUM($I$31:$I206)) -> 
F207: =IF(MAX($F$31:$F206)+1>$I$20,"",MAX($F$31:$F206)+1) ->  | H207: =IF($F207="","",-IPMT($I$13/Months_in_Year,$F207,$I$20,$I$12)) ->  | I207: =IF($F207="","",-PPMT($I$13/Months_in_Year,$F207,$I$20,$I$12)) ->  | J207: =IF($F207="","",$I$12-SUM($I$31:$I207)) -> 
F208: =IF(MAX($F$31:$F207)+1>$I$20,"",MAX($F$31:$F207)+1) ->  | H208: =IF($F208="","",-IPMT($I$13/Months_in_Year,$F208,$I$20,$I$12)) ->  | I208: =IF($F208="","",-PPMT($I$13/Months_in_Year,$F208,$I$20,$I$12)) ->  | J208: =IF($F208="","",$I$12-SUM($I$31:$I208)) -> 
F209: =IF(MAX($F$31:$F208)+1>$I$20,"",MAX($F$31:$F208)+1) ->  | H209: =IF($F209="","",-IPMT($I$13/Months_in_Year,$F209,$I$20,$I$12)) ->  | I209: =IF($F209="","",-PPMT($I$13/Months_in_Year,$F209,$I$20,$I$12)) ->  | J209: =IF($F209="","",$I$12-SUM($I$31:$I209)) -> 
F210: =IF(MAX($F$31:$F209)+1>$I$20,"",MAX($F$31:$F209)+1) ->  | H210: =IF($F210="","",-IPMT($I$13/Months_in_Year,$F210,$I$20,$I$12)) ->  | I210: =IF($F210="","",-PPMT($I$13/Months_in_Year,$F210,$I$20,$I$12)) ->  | J210: =IF($F210="","",$I$12-SUM($I$31:$I210)) -> 
F211: =IF(MAX($F$31:$F210)+1>$I$20,"",MAX($F$31:$F210)+1) ->  | H211: =IF($F211="","",-IPMT($I$13/Months_in_Year,$F211,$I$20,$I$12)) ->  | I211: =IF($F211="","",-PPMT($I$13/Months_in_Year,$F211,$I$20,$I$12)) ->  | J211: =IF($F211="","",$I$12-SUM($I$31:$I211)) -> 
F212: =IF(MAX($F$31:$F211)+1>$I$20,"",MAX($F$31:$F211)+1) ->  | H212: =IF($F212="","",-IPMT($I$13/Months_in_Year,$F212,$I$20,$I$12)) ->  | I212: =IF($F212="","",-PPMT($I$13/Months_in_Year,$F212,$I$20,$I$12)) ->  | J212: =IF($F212="","",$I$12-SUM($I$31:$I212)) -> 
... 19 more rows

Sheet Timing
A1: =IF(ISERROR(RIGHT(CELL("filename",A1),LEN(CELL("filename",A1))-FIND("]",CELL("filename",A1)))), "", RIGHT(CELL("filename",A1),LEN(CELL("filename",A1))-FIND("]",CELL("filename",A1)))) -> Timing
A2: =Model_Name -> SP CUMIPMT Example.xlsm
A3: Navigator
B4: Error Checks: | F4: =Overall_Error_Check -> 0
J5: =J$7 -> 2018-03-31 | K5: =K$7 -> 2018-06-30 | L5: =L$7 -> 2018-09-30 | M5: =M$7 -> 2018-12-31 | N5: =N$7 -> 2019-03-31
C6: Start Date | J6: =IF(J$9=1,Model_Start_Date,I$7+1) -> 2018-02-09 | K6: =IF(K$9=1,Model_Start_Date,J$7+1) -> 2018-04-01 | L6: =IF(L$9=1,Model_Start_Date,K$7+1) -> 2018-07-01 | M6: =IF(M$9=1,Model_Start_Date,L$7+1) -> 2018-10-01 | N6: =IF(N$9=1,Model_Start_Date,M$7+1) -> 2019-01-01
C7: End Date | J7: =EOMONTH(J$6,MOD(Periodicity+Reporting_Month_Factor-MONTH(J$6),Periodicity)) -> 2018-03-31 | K7: =EOMONTH(K$6,MOD(Periodicity+Reporting_Month_Factor-MONTH(K$6),Periodicity)) -> 2018-06-30 | L7: =EOMONTH(L$6,MOD(Periodicity+Reporting_Month_Factor-MONTH(L$6),Periodicity)) -> 2018-09-30 | M7: =EOMONTH(M$6,MOD(Periodicity+Reporting_Month_Factor-MONTH(M$6),Periodicity)) -> 2018-12-31 | N7: =EOMONTH(N$6,MOD(Periodicity+Reporting_Month_Factor-MONTH(N$6),Periodicity)) -> 2019-03-31
C8: Number of Days | J8: =J7-J6+1 -> 51 | K8: =K7-K6+1 -> 91 | L8: 92 | M8: 92 | N8: 90
C9: Counter | J9: =N(I$9)+1 -> 1 | K9: =N(J$9)+1 -> 2 | L9: 3 | M9: 4 | N9: 5
B11: =MAX($B$10:$B10)+1 -> 1 | C11: Timing Assumptions
C13: Data (do not change once modelling has commenced)
D15: Model Start Date | H15: =TODAY() -> 2018-02-09
D17: Number of Months in a Full Period | H17: 3
D19: Example Reporting Month | H19: 12 | I19: ="e.g. "&TEXT(DATE(YEAR(Model_Start_Date)+IF(Example_Reporting_Month<MONTH(Model_Start_Date),1,0),Example_Reporting_Month+1,1)-1,"dd-Mmm-yy") -> e.g. 31-Dec-18
D21: Reporting Month Factor | H21: =MOD(Example_Reporting_Month-1,Periodicity)+1 -> 3
D23: Months per Year | H23: 12

Sheet Error Checks
A1: =IF(ISERROR(RIGHT(CELL("filename",A1),LEN(CELL("filename",A1))-FIND("]",CELL("filename",A1)))), "", RIGHT(CELL("filename",A1),LEN(CELL("filename",A1))-FIND("]",CELL("filename",A1)))) -> Error Checks
A2: =Model_Name -> SP CUMIPMT Example.xlsm
A3: Navigator
B4: Error Checks: | F4: =Overall_Error_Check -> 0
B6: =MAX($B$5:$B5)+1 -> 1 | C6: Error Checks
C8: Summary of Errors
D10: Assumptions
E12: Example
E17: =C8 -> Summary of Errors | I17: =MIN(1,SUM(I11:I15)) -> 0

Sheet Change Log
A1: =IF(ISERROR(RIGHT(CELL("filename",A1),LEN(CELL("filename",A1))-FIND("]",CELL("filename",A1)))), "", RIGHT(CELL("filename",A1),LEN(CELL("filename",A1))-FIND("]",CELL("filename",A1)))) -> Change Log
A2: =Model_Name -> SP CUMIPMT Example.xlsm
A3: Navigator
B4: Error Checks: | F4: =Overall_Error_Check -> 0
B6: =MAX($B$5:$B5)+1 -> 1 | C6: =A1 -> Change Log
C8: Summary
F10: Date | G10: Model Version | H10: Details of change | I10: Worksheet Reference | J10: Row, column, cell reference | K10: Author
F11: 2013-05-21 | G11: Untitled attachment 00059.xlsm | H11: I changed it | I11: Change Log | J11: F11 | K11: LB
F12: 2013-05-21 | G12: Untitled attachment 00059.xlsm | H12: So did I. | I12: Timing | J12: A4 | K12: LB
F13: 2013-05-21 | G13: Untitled attachment 00059.xlsm | H13: And me. | I13: Navigator | J13: B9 | K13: Dave
